{"text_format":"1","workbook":"xlsx","n_sheets":19,"sheets":["РА","Адыг","Майкоп","Гиаг","Кош","Красн","Майк","Тахт","Теуч","Шовг","Форма_3п","пер2 СНГ","Пер2СНГБеларусь","пер2 вне СНГ","Errors","Шаблон","Cond_2p","Subjects","Cond_3p"],"not_rendered":{"charts":0,"images":0,"macros":1,"external_links":0,"defined_names":6,"comments":0,"pivot_tables":0},"unopened":[],"bounds":{"document_bytes":16777216,"sheet_cells":100000,"rows_first":2000,"rows_last":500,"rows_between":2000,"halvings":0,"cell_chars":16384,"cell_head_chars":4096},"cells_cut":0,"cells_raw":0,"read":"whole","date_system":"1900"}

{"sheet":"РА","index":0,"n_rows":26,"n_cols":20,"rows_kept":26,"cut":false,"hidden":false,"merged":[[25,0,25,10],[1,1,1,17],[9,11,10,11],[8,11,8,12],[8,0,10,0],[8,1,10,1],[8,7,8,10],[9,14,9,15],[9,16,9,17],[8,14,8,19],[9,12,10,12],[9,13,10,13],[9,18,9,19]]}
[]
[null,"К прогнозу на 2026-2028 годы     по Республике Адыгея"]
[]
[null,null,null,null,null,null,null,null,null,null,null,null,"раздел     ПОТРЕБИТЕЛЬСКИЙ РЫНОК"]
[]
[]
[]
[]
[null,"Единица измерения","Код","Доп. Код","Код отрасли","Форма собственности","Измерение","отчет",null,null,null,null,null,"оценка","прогноз"]
[null,null,null,null,null,null,null,1998,1999,2000,2001,"2023 год","2024 год","2025 год","2026 год",null,"2027 год",null,"2028 год"]
[null,null,null,null,null,null,null,null,null,null,null,null,null,null,"вариант 1","вариант 2","вариант 1","вариант 2","вариант 1","вариант 2"]
["3. Рынок товаров и услуг"]
["Индекс потребительских цен","декабрь к декабрю предыдущего года, %",1,null,null,null,"02"]
["Индекс потребительских цен (среднегодовой)","% к предыдущему году",1,null,null,null,"02"]
["Оборот розничной торговли ","млн. руб. в ценах соответствующих лет",1,null,null,null,"04",null,null,null,null,{"$f":"Адыг!L15+Майкоп!L15+Гиаг!L15+Кош!L15+Красн!L15+Майк!L15+Тахт!L15+Теуч!L15+Шовг!L15","v":0},{"$f":"Адыг!M15+Майкоп!M15+Гиаг!M15+Кош!M15+Красн!M15+Майк!M15+Тахт!M15+Теуч!M15+Шовг!M15","v":0},{"$f":"Адыг!N15+Майкоп!N15+Гиаг!N15+Кош!N15+Красн!N15+Майк!N15+Тахт!N15+Теуч!N15+Шовг!N15","v":0},{"$f":"Адыг!O15+Майкоп!O15+Гиаг!O15+Кош!O15+Красн!O15+Майк!O15+Тахт!O15+Теуч!O15+Шовг!O15","v":0},null,{"$f":"Адыг!Q15+Майкоп!Q15+Гиаг!R15+Кош!R15+Красн!R15+Майк!R15+Тахт!R15+Теуч!R15+Шовг!R15","v":0},null,{"$f":"Адыг!S15+Майкоп!S15+Гиаг!U15+Кош!U15+Красн!U15+Майк!U15+Тахт!U15+Теуч!U15+Шовг!U15","v":0}]
["индекс физического объема                                                   оборота розничной торговли","% к предыдущему году",1,null,null,null,"02"]
["индекс-дефлятор                                                                  оборота розничной торговли","% к предыдущему году",1,null,null,null,"30"]
["Оборот общественного питания","млн. руб. в ценах соответствующих лет",1,null,null,null,"04",null,null,null,null,{"$f":"Адыг!L18+Майкоп!L18+Гиаг!L18+Кош!L18+Красн!L18+Майк!L18+Тахт!L18+Теуч!L18+Шовг!L18","v":0},{"$f":"Адыг!M18+Майкоп!M18+Гиаг!M18+Кош!M18+Красн!M18+Майк!M18+Тахт!M18+Теуч!M18+Шовг!M18","v":0},{"$f":"Адыг!N18+Майкоп!N18+Гиаг!N18+Кош!N18+Красн!N18+Майк!N18+Тахт!N18+Теуч!N18+Шовг!N18","v":0},{"$f":"Адыг!O18+Майкоп!O18+Гиаг!O18+Кош!O18+Красн!O18+Майк!O18+Тахт!O18+Теуч!O18+Шовг!O18","v":0},null,{"$f":"Адыг!Q18+Майкоп!Q18+Гиаг!R18+Кош!R18+Красн!R18+Майк!R18+Тахт!R18+Теуч!R18+Шовг!R18","v":0},null,{"$f":"Адыг!S18+Майкоп!S18+Гиаг!U18+Кош!U18+Красн!U18+Майк!U18+Тахт!U18+Теуч!U18+Шовг!U18","v":0}]
["индекс физического объема                                                                           оборота общественного питания","% к предыдущему году",1,null,null,null,"02"]
["индекс цен                                                                            на продукцию общественного питания","% к предыдущему году",1,null,null,null,"02"]
["Объем платных услуг населению ","млн. руб. в ценах соответствующих лет",1,null,null,null,"04",null,null,null,null,null,null,{"$f":"M21*N22*N23/100/100","v":0},{"$f":"N21*O22*O23/100/100","v":0},null,{"$f":"O21*Q22*Q23/100/100","v":0},null,{"$f":"Q21*S22*S23*100/100","v":0}]
[null,"% к предыдущему году в сопоставимых ценах",1,null,null,null,"02"]
["индекс-дефлятор по платным услугам","% к предыдущему году",1,null,null,null,"30"]
[]
[]
["Макухина Людмила Александровна, 52-51-10"]

{"sheet":"Адыг","index":1,"n_rows":26,"n_cols":20,"rows_kept":26,"cut":false,"hidden":false,"merged":[[25,0,25,10],[9,12,10,12],[9,13,10,13],[8,0,10,0],[8,1,10,1],[1,1,1,17],[8,11,8,12],[8,7,8,10],[8,14,8,19],[9,14,9,15],[9,16,9,17],[9,18,9,19],[9,11,10,11]]}
[]
[null,"К прогнозу на 2026-2028 годы     по Республике Адыгея"]
[]
[null,null,null,null,null,null,null,null,null,null,null,null,"раздел     ПОТРЕБИТЕЛЬСКИЙ РЫНОК"]
[]
[]
[]
[]
[null,"Единица измерения","Код","Доп. Код","Код отрасли","Форма собственности","Измерение","отчет",null,null,null,null,null,"оценка","прогноз"]
[null,null,null,null,null,null,null,1998,1999,2000,2001,"2023 год","2024 год","2025 год","2026 год",null,"2027 год",null,"2028 год"]
[null,null,null,null,null,null,null,null,null,null,null,null,null,null,"вариант 1","вариант 2","вариант 1","вариант 2","вариант 1","вариант 2"]
["3. Рынок товаров и услуг"]
["Индекс потребительских цен","декабрь к декабрю предыдущего года, %",1,null,null,null,"02"]
["Индекс потребительских цен (среднегодовой)","% к предыдущему году",1,null,null,null,"02"]
["Оборот розничной торговли ","млн. руб. в ценах соответствующих лет",1,null,null,null,"04",null,null,null,null,{"$f":"Адыг!L15+Майкоп!L15+Гиаг!L15+Кош!L15+Красн!L15+Майк!L15+Тахт!L15+Теуч!L15+Шовг!L15","v":0},{"$f":"Адыг!M15+Майкоп!M15+Гиаг!M15+Кош!M15+Красн!M15+Майк!M15+Тахт!M15+Теуч!M15+Шовг!M15","v":0},{"$f":"Адыг!N15+Майкоп!N15+Гиаг!N15+Кош!N15+Красн!N15+Майк!N15+Тахт!N15+Теуч!N15+Шовг!N15","v":0},{"$f":"Адыг!O15+Майкоп!O15+Гиаг!O15+Кош!O15+Красн!O15+Майк!O15+Тахт!O15+Теуч!O15+Шовг!O15","v":0},null,{"$f":"Адыг!Q15+Майкоп!Q15+Гиаг!R15+Кош!R15+Красн!R15+Майк!R15+Тахт!R15+Теуч!R15+Шовг!R15","v":0},null,{"$f":"Адыг!S15+Майкоп!S15+Гиаг!U15+Кош!U15+Красн!U15+Майк!U15+Тахт!U15+Теуч!U15+Шовг!U15","v":0}]
["индекс физического объема                                                   оборота розничной торговли","% к предыдущему году",1,null,null,null,"02"]
["индекс-дефлятор                                                                  оборота розничной торговли","% к предыдущему году",1,null,null,null,"30"]
["Оборот общественного питания","млн. руб. в ценах соответствующих лет",1,null,null,null,"04",null,null,null,null,{"$f":"Адыг!L18+Майкоп!L18+Гиаг!L18+Кош!L18+Красн!L18+Майк!L18+Тахт!L18+Теуч!L18+Шовг!L18","v":0},{"$f":"Адыг!M18+Майкоп!M18+Гиаг!M18+Кош!M18+Красн!M18+Майк!M18+Тахт!M18+Теуч!M18+Шовг!M18","v":0},{"$f":"Адыг!N18+Майкоп!N18+Гиаг!N18+Кош!N18+Красн!N18+Майк!N18+Тахт!N18+Теуч!N18+Шовг!N18","v":0},{"$f":"Адыг!O18+Майкоп!O18+Гиаг!O18+Кош!O18+Красн!O18+Майк!O18+Тахт!O18+Теуч!O18+Шовг!O18","v":0},null,{"$f":"Адыг!Q18+Майкоп!Q18+Гиаг!R18+Кош!R18+Красн!R18+Майк!R18+Тахт!R18+Теуч!R18+Шовг!R18","v":0},null,{"$f":"Адыг!S18+Майкоп!S18+Гиаг!U18+Кош!U18+Красн!U18+Майк!U18+Тахт!U18+Теуч!U18+Шовг!U18","v":0}]
["индекс физического объема                                                                           оборота общественного питания","% к предыдущему году",1,null,null,null,"02"]
["индекс цен                                                                            на продукцию общественного питания","% к предыдущему году",1,null,null,null,"02"]
["Объем платных услуг населению ","млн. руб. в ценах соответствующих лет",1,null,null,null,"04",null,null,null,null,null,null,{"$f":"M21*N22*N23/100/100","v":0},{"$f":"N21*O22*O23/100/100","v":0},null,{"$f":"O21*Q22*Q23/100/100","v":0},null,{"$f":"Q21*S22*S23*100/100","v":0}]
[null,"% к предыдущему году в сопоставимых ценах",1,null,null,null,"02"]
["индекс-дефлятор по платным услугам","% к предыдущему году",1,null,null,null,"30"]
[]
[]
["Макухина Людмила Александровна, 52-51-10"]

{"sheet":"Майкоп","index":2,"n_rows":23,"n_cols":20,"rows_kept":23,"cut":false,"hidden":false,"merged":[[9,18,9,19],[9,13,10,13],[25,0,25,10],[8,0,10,0],[8,1,10,1],[8,7,8,10],[8,14,8,19],[1,1,1,17],[8,11,8,12],[9,11,10,11],[9,12,10,12],[9,14,9,15],[9,16,9,17]]}
[]
[null,"К прогнозу на 2026-2028 годы     по Республике Адыгея"]
[]
[null,null,null,null,null,null,null,null,null,null,null,null,"раздел     ПОТРЕБИТЕЛЬСКИЙ РЫНОК"]
[]
[]
[]
[]
[null,"Единица измерения","Код","Доп. Код","Код отрасли","Форма собственности","Измерение","отчет",null,null,null,null,null,"оценка","прогноз"]
[null,null,null,null,null,null,null,1998,1999,2000,2001,"2023 год","2024 год","2025 год","2026 год",null,"2027 год",null,"2028 год"]
[null,null,null,null,null,null,null,null,null,null,null,null,null,null,"вариант 1","вариант 2","вариант 1","вариант 2","вариант 1","вариант 2"]
["3. Рынок товаров и услуг"]
["Индекс потребительских цен","декабрь к декабрю предыдущего года, %",1,null,null,null,"02",null,null,null,null,null,107.5,105.8,104,104,104,104,104,104]
["Индекс потребительских цен (среднегодовой)","% к предыдущему году",1,null,null,null,"02",null,null,null,null,null,108.4,108,105.2,105.5,104,104,104,104]
["Оборот розничной торговли ","млн. руб. в ценах соответствующих лет",1,null,null,null,"04",null,null,null,null,58016.5,75902.899999999994,{"$f":"M15*N16*N17/10000","v":83359.600895999989},{"$f":"N15*O16*O17/10000","v":87702.636102681587},{"$f":"N15*P16*P17/10000","v":89294.804479795188},{"$f":"O15*Q16*Q17/10000","v":91210.74154678885},{"$f":"P15*R16*R17/10000","v":93795.26262557687},{"$f":"Q15*S16*S17/10000","v":94859.171208660395},{"$f":"R15*T16*T17/10000","v":98034.808496252939}]
["индекс физического объема                                                   оборота розничной торговли","% к предыдущему году",1,null,null,null,"02",null,null,null,null,null,106.5,104,100.2,103,100,101,100,100.5]
["индекс-дефлятор                                                                  оборота розничной торговли","% к предыдущему году",1,null,null,null,"30",null,null,null,null,null,108.5,105.6,105,104,104,104,104,104]
["Оборот общественного питания","млн. руб. в ценах соответствующих лет",1,null,null,null,"04",null,null,null,null,2155.0700000000002,2493,{"$f":"M18*N19*N20/10000","v":2837.4079499999998},{"$f":"N18*O19*O20/10000","v":3017.6684770635002},{"$f":"N18*P19*P20/10000","v":3039.43139604},{"$f":"O18*Q19*Q20/10000","v":3169.7589683075003},{"$f":"P18*R19*R20/10000","v":3271.6439546974557},{"$f":"Q18*S19*S20/10000","v":3329.514820310198},{"$f":"R18*T19*T20/10000","v":3504.5850042719139}]
["индекс физического объема                                                                           оборота общественного питания","% к предыдущему году",1,null,null,null,"02",null,null,null,null,null,110.5,103,101,103,101,103.5,101,103]
["индекс цен                                                                            на продукцию общественного питания","% к предыдущему году",1,null,null,null,"02",null,null,null,null,null,109.6,110.5,105.3,104,104,104,104,104]
["Объем платных услуг населению ","млн. руб. в ценах соответствующих лет",1,null,null,null,"04",null,null,null,null,17403.18,23026.7,{"$f":"M21*N22*N23/10000","v":27988.953850000002},{"$f":"N21*O22*O23/10000","v":29767.092088090496},{"$f":"N21*P22*P23/10000","v":29981.767364120002},{"$f":"O21*Q22*Q23/10000","v":31267.353529330252},{"$f":"P21*R22*R23/10000","v":32116.469200445346},{"$f":"Q21*S22*S23/10000","v":32518.04767050346},{"$f":"R21*T22*T23/10000","v":34403.161807517055}]
[null,"% к предыдущему году в сопоставимых ценах",1,null,null,null,"02",null,null,null,null,null,110.5,110,101,103,101,103,100,103]
["индекс-дефлятор по платным услугам","% к предыдущему году",1,null,null,null,"30",null,null,null,null,null,109.6,110.5,105.3,104,104,104,104,104]

{"sheet":"Гиаг","index":3,"n_rows":26,"n_cols":20,"rows_kept":26,"cut":false,"hidden":false,"merged":[[25,0,25,10],[8,0,10,0],[8,1,10,1],[8,7,8,10],[9,11,10,11],[1,1,1,17],[8,11,8,12],[9,12,10,12],[9,13,10,13],[8,14,8,19],[9,14,9,15],[9,16,9,17],[9,18,9,19]]}
[]
[null,"К прогнозу на 2026-2028 годы     по Республике Адыгея"]
[]
[null,null,null,null,null,null,null,null,null,null,null,null,"раздел     ПОТРЕБИТЕЛЬСКИЙ РЫНОК"]
[]
[]
[]
[]
[null,"Единица измерения","Код","Доп. Код","Код отрасли","Форма собственности","Измерение","отчет",null,null,null,null,null,"оценка","прогноз"]
[null,null,null,null,null,null,null,1998,1999,2000,2001,"2023 год","2024 год","2025 год","2026 год",null,"2027 год",null,"2028 год"]
[null,null,null,null,null,null,null,null,null,null,null,null,null,null,"вариант 1","вариант 2","вариант 1","вариант 2","вариант 1","вариант 2"]
["3. Рынок товаров и услуг"]
["Индекс потребительских цен","декабрь к декабрю предыдущего года, %",1,null,null,null,"02"]
["Индекс потребительских цен (среднегодовой)","% к предыдущему году",1,null,null,null,"02"]
["Оборот розничной торговли ","млн. руб. в ценах соответствующих лет",1,null,null,null,"04",null,null,null,null,{"$f":"Адыг!L15+Майкоп!L15+Гиаг!L15+Кош!L15+Красн!L15+Майк!L15+Тахт!L15+Теуч!L15+Шовг!L15","v":0},{"$f":"Адыг!M15+Майкоп!M15+Гиаг!M15+Кош!M15+Красн!M15+Майк!M15+Тахт!M15+Теуч!M15+Шовг!M15","v":0},{"$f":"Адыг!N15+Майкоп!N15+Гиаг!N15+Кош!N15+Красн!N15+Майк!N15+Тахт!N15+Теуч!N15+Шовг!N15","v":0},{"$f":"Адыг!O15+Майкоп!O15+Гиаг!O15+Кош!O15+Красн!O15+Майк!O15+Тахт!O15+Теуч!O15+Шовг!O15","v":0},null,{"$f":"Адыг!Q15+Майкоп!Q15+Гиаг!R15+Кош!R15+Красн!R15+Майк!R15+Тахт!R15+Теуч!R15+Шовг!R15","v":0},null,{"$f":"Адыг!S15+Майкоп!S15+Гиаг!U15+Кош!U15+Красн!U15+Майк!U15+Тахт!U15+Теуч!U15+Шовг!U15","v":0}]
["индекс физического объема                                                   оборота розничной торговли","% к предыдущему году",1,null,null,null,"02"]
["индекс-дефлятор                                                                  оборота розничной торговли","% к предыдущему году",1,null,null,null,"30"]
["Оборот общественного питания","млн. руб. в ценах соответствующих лет",1,null,null,null,"04",null,null,null,null,{"$f":"Адыг!L18+Майкоп!L18+Гиаг!L18+Кош!L18+Красн!L18+Майк!L18+Тахт!L18+Теуч!L18+Шовг!L18","v":0},{"$f":"Адыг!M18+Майкоп!M18+Гиаг!M18+Кош!M18+Красн!M18+Майк!M18+Тахт!M18+Теуч!M18+Шовг!M18","v":0},{"$f":"Адыг!N18+Майкоп!N18+Гиаг!N18+Кош!N18+Красн!N18+Майк!N18+Тахт!N18+Теуч!N18+Шовг!N18","v":0},{"$f":"Адыг!O18+Майкоп!O18+Гиаг!O18+Кош!O18+Красн!O18+Майк!O18+Тахт!O18+Теуч!O18+Шовг!O18","v":0},null,{"$f":"Адыг!Q18+Майкоп!Q18+Гиаг!R18+Кош!R18+Красн!R18+Майк!R18+Тахт!R18+Теуч!R18+Шовг!R18","v":0},null,{"$f":"Адыг!S18+Майкоп!S18+Гиаг!U18+Кош!U18+Красн!U18+Майк!U18+Тахт!U18+Теуч!U18+Шовг!U18","v":0}]
["индекс физического объема                                                                           оборота общественного питания","% к предыдущему году",1,null,null,null,"02"]
["индекс цен                                                                            на продукцию общественного питания","% к предыдущему году",1,null,null,null,"02"]
["Объем платных услуг населению ","млн. руб. в ценах соответствующих лет",1,null,null,null,"04",null,null,null,null,null,null,{"$f":"M21*N22*N23/100/100","v":0},{"$f":"N21*O22*O23/100/100","v":0},null,{"$f":"O21*Q22*Q23/100/100","v":0},null,{"$f":"Q21*S22*S23*100/100","v":0}]
[null,"% к предыдущему году в сопоставимых ценах",1,null,null,null,"02"]
["индекс-дефлятор по платным услугам","% к предыдущему году",1,null,null,null,"30"]
[]
[]
["Макухина Людмила Александровна, 52-51-10"]

{"sheet":"Кош","index":4,"n_rows":26,"n_cols":20,"rows_kept":26,"cut":false,"hidden":false,"merged":[[1,1,1,17],[8,11,8,12],[25,0,25,10],[9,13,10,13],[8,14,8,19],[9,14,9,15],[9,16,9,17],[9,18,9,19],[9,11,10,11],[8,0,10,0],[8,1,10,1],[8,7,8,10],[9,12,10,12]]}
[]
[null,"К прогнозу на 2026-2028 годы     по Республике Адыгея"]
[]
[null,null,null,null,null,null,null,null,null,null,null,null,"раздел     ПОТРЕБИТЕЛЬСКИЙ РЫНОК"]
[]
[]
[]
[]
[null,"Единица измерения","Код","Доп. Код","Код отрасли","Форма собственности","Измерение","отчет",null,null,null,null,null,"оценка","прогноз"]
[null,null,null,null,null,null,null,1998,1999,2000,2001,"2023 год","2024 год","2025 год","2026 год",null,"2027 год",null,"2028 год"]
[null,null,null,null,null,null,null,null,null,null,null,null,null,null,"вариант 1","вариант 2","вариант 1","вариант 2","вариант 1","вариант 2"]
["3. Рынок товаров и услуг"]
["Индекс потребительских цен","декабрь к декабрю предыдущего года, %",1,null,null,null,"02"]
["Индекс потребительских цен (среднегодовой)","% к предыдущему году",1,null,null,null,"02"]
["Оборот розничной торговли ","млн. руб. в ценах соответствующих лет",1,null,null,null,"04",null,null,null,null,{"$f":"Адыг!L15+Майкоп!L15+Гиаг!L15+Кош!L15+Красн!L15+Майк!L15+Тахт!L15+Теуч!L15+Шовг!L15","v":0},{"$f":"Адыг!M15+Майкоп!M15+Гиаг!M15+Кош!M15+Красн!M15+Майк!M15+Тахт!M15+Теуч!M15+Шовг!M15","v":0},{"$f":"Адыг!N15+Майкоп!N15+Гиаг!N15+Кош!N15+Красн!N15+Майк!N15+Тахт!N15+Теуч!N15+Шовг!N15","v":0},{"$f":"Адыг!O15+Майкоп!O15+Гиаг!O15+Кош!O15+Красн!O15+Майк!O15+Тахт!O15+Теуч!O15+Шовг!O15","v":0},null,{"$f":"Адыг!Q15+Майкоп!Q15+Гиаг!R15+Кош!R15+Красн!R15+Майк!R15+Тахт!R15+Теуч!R15+Шовг!R15","v":0},null,{"$f":"Адыг!S15+Майкоп!S15+Гиаг!U15+Кош!U15+Красн!U15+Майк!U15+Тахт!U15+Теуч!U15+Шовг!U15","v":0}]
["индекс физического объема                                                   оборота розничной торговли","% к предыдущему году",1,null,null,null,"02"]
["индекс-дефлятор                                                                  оборота розничной торговли","% к предыдущему году",1,null,null,null,"30"]
["Оборот общественного питания","млн. руб. в ценах соответствующих лет",1,null,null,null,"04",null,null,null,null,{"$f":"Адыг!L18+Майкоп!L18+Гиаг!L18+Кош!L18+Красн!L18+Майк!L18+Тахт!L18+Теуч!L18+Шовг!L18","v":0},{"$f":"Адыг!M18+Майкоп!M18+Гиаг!M18+Кош!M18+Красн!M18+Майк!M18+Тахт!M18+Теуч!M18+Шовг!M18","v":0},{"$f":"Адыг!N18+Майкоп!N18+Гиаг!N18+Кош!N18+Красн!N18+Майк!N18+Тахт!N18+Теуч!N18+Шовг!N18","v":0},{"$f":"Адыг!O18+Майкоп!O18+Гиаг!O18+Кош!O18+Красн!O18+Майк!O18+Тахт!O18+Теуч!O18+Шовг!O18","v":0},null,{"$f":"Адыг!Q18+Майкоп!Q18+Гиаг!R18+Кош!R18+Красн!R18+Майк!R18+Тахт!R18+Теуч!R18+Шовг!R18","v":0},null,{"$f":"Адыг!S18+Майкоп!S18+Гиаг!U18+Кош!U18+Красн!U18+Майк!U18+Тахт!U18+Теуч!U18+Шовг!U18","v":0}]
["индекс физического объема                                                                           оборота общественного питания","% к предыдущему году",1,null,null,null,"02"]
["индекс цен                                                                            на продукцию общественного питания","% к предыдущему году",1,null,null,null,"02"]
["Объем платных услуг населению ","млн. руб. в ценах соответствующих лет",1,null,null,null,"04",null,null,null,null,null,null,{"$f":"M21*N22*N23/100/100","v":0},{"$f":"N21*O22*O23/100/100","v":0},null,{"$f":"O21*Q22*Q23/100/100","v":0},null,{"$f":"Q21*S22*S23*100/100","v":0}]
[null,"% к предыдущему году в сопоставимых ценах",1,null,null,null,"02"]
["индекс-дефлятор по платным услугам","% к предыдущему году",1,null,null,null,"30"]
[]
[]
["Макухина Людмила Александровна, 52-51-10"]

{"sheet":"Красн","index":5,"n_rows":26,"n_cols":20,"rows_kept":26,"cut":false,"hidden":false,"merged":[[1,1,1,17],[8,11,8,12],[8,0,10,0],[8,1,10,1],[8,7,8,10],[9,11,10,11],[9,13,10,13],[25,0,25,10],[8,14,8,19],[9,14,9,15],[9,16,9,17],[9,18,9,19],[9,12,10,12]]}
[]
[null,"К прогнозу на 2026-2028 годы     по Республике Адыгея"]
[]
[null,null,null,null,null,null,null,null,null,null,null,null,"раздел     ПОТРЕБИТЕЛЬСКИЙ РЫНОК"]
[]
[]
[]
[]
[null,"Единица измерения","Код","Доп. Код","Код отрасли","Форма собственности","Измерение","отчет",null,null,null,null,null,"оценка","прогноз"]
[null,null,null,null,null,null,null,1998,1999,2000,2001,"2023 год","2024 год","2025 год","2026 год",null,"2027 год",null,"2028 год"]
[null,null,null,null,null,null,null,null,null,null,null,null,null,null,"вариант 1","вариант 2","вариант 1","вариант 2","вариант 1","вариант 2"]
["3. Рынок товаров и услуг"]
["Индекс потребительских цен","декабрь к декабрю предыдущего года, %",1,null,null,null,"02"]
["Индекс потребительских цен (среднегодовой)","% к предыдущему году",1,null,null,null,"02"]
["Оборот розничной торговли ","млн. руб. в ценах соответствующих лет",1,null,null,null,"04",null,null,null,null,{"$f":"Адыг!L15+Майкоп!L15+Гиаг!L15+Кош!L15+Красн!L15+Майк!L15+Тахт!L15+Теуч!L15+Шовг!L15","v":0},{"$f":"Адыг!M15+Майкоп!M15+Гиаг!M15+Кош!M15+Красн!M15+Майк!M15+Тахт!M15+Теуч!M15+Шовг!M15","v":0},{"$f":"Адыг!N15+Майкоп!N15+Гиаг!N15+Кош!N15+Красн!N15+Майк!N15+Тахт!N15+Теуч!N15+Шовг!N15","v":0},{"$f":"Адыг!O15+Майкоп!O15+Гиаг!O15+Кош!O15+Красн!O15+Майк!O15+Тахт!O15+Теуч!O15+Шовг!O15","v":0},null,{"$f":"Адыг!Q15+Майкоп!Q15+Гиаг!R15+Кош!R15+Красн!R15+Майк!R15+Тахт!R15+Теуч!R15+Шовг!R15","v":0},null,{"$f":"Адыг!S15+Майкоп!S15+Гиаг!U15+Кош!U15+Красн!U15+Майк!U15+Тахт!U15+Теуч!U15+Шовг!U15","v":0}]
["индекс физического объема                                                   оборота розничной торговли","% к предыдущему году",1,null,null,null,"02"]
["индекс-дефлятор                                                                  оборота розничной торговли","% к предыдущему году",1,null,null,null,"30"]
["Оборот общественного питания","млн. руб. в ценах соответствующих лет",1,null,null,null,"04",null,null,null,null,{"$f":"Адыг!L18+Майкоп!L18+Гиаг!L18+Кош!L18+Красн!L18+Майк!L18+Тахт!L18+Теуч!L18+Шовг!L18","v":0},{"$f":"Адыг!M18+Майкоп!M18+Гиаг!M18+Кош!M18+Красн!M18+Майк!M18+Тахт!M18+Теуч!M18+Шовг!M18","v":0},{"$f":"Адыг!N18+Майкоп!N18+Гиаг!N18+Кош!N18+Красн!N18+Майк!N18+Тахт!N18+Теуч!N18+Шовг!N18","v":0},{"$f":"Адыг!O18+Майкоп!O18+Гиаг!O18+Кош!O18+Красн!O18+Майк!O18+Тахт!O18+Теуч!O18+Шовг!O18","v":0},null,{"$f":"Адыг!Q18+Майкоп!Q18+Гиаг!R18+Кош!R18+Красн!R18+Майк!R18+Тахт!R18+Теуч!R18+Шовг!R18","v":0},null,{"$f":"Адыг!S18+Майкоп!S18+Гиаг!U18+Кош!U18+Красн!U18+Майк!U18+Тахт!U18+Теуч!U18+Шовг!U18","v":0}]
["индекс физического объема                                                                           оборота общественного питания","% к предыдущему году",1,null,null,null,"02"]
["индекс цен                                                                            на продукцию общественного питания","% к предыдущему году",1,null,null,null,"02"]
["Объем платных услуг населению ","млн. руб. в ценах соответствующих лет",1,null,null,null,"04",null,null,null,null,null,null,{"$f":"M21*N22*N23/100/100","v":0},{"$f":"N21*O22*O23/100/100","v":0},null,{"$f":"O21*Q22*Q23/100/100","v":0},null,{"$f":"Q21*S22*S23*100/100","v":0}]
[null,"% к предыдущему году в сопоставимых ценах",1,null,null,null,"02"]
["индекс-дефлятор по платным услугам","% к предыдущему году",1,null,null,null,"30"]
[]
[]
["Макухина Людмила Александровна, 52-51-10"]

{"sheet":"Майк","index":6,"n_rows":26,"n_cols":20,"rows_kept":26,"cut":false,"hidden":false,"merged":[[1,1,1,17],[8,11,8,12],[8,0,10,0],[8,1,10,1],[8,7,8,10],[9,11,10,11],[9,13,10,13],[25,0,25,10],[8,14,8,19],[9,14,9,15],[9,16,9,17],[9,18,9,19],[9,12,10,12]]}
[]
[null,"К прогнозу на 2026-2028 годы     по Республике Адыгея"]
[]
[null,null,null,null,null,null,null,null,null,null,null,null,"раздел     ПОТРЕБИТЕЛЬСКИЙ РЫНОК"]
[]
[]
[]
[]
[null,"Единица измерения","Код","Доп. Код","Код отрасли","Форма собственности","Измерение","отчет",null,null,null,null,null,"оценка","прогноз"]
[null,null,null,null,null,null,null,1998,1999,2000,2001,"2023 год","2024 год","2025 год","2026 год",null,"2027 год",null,"2028 год"]
[null,null,null,null,null,null,null,null,null,null,null,null,null,null,"вариант 1","вариант 2","вариант 1","вариант 2","вариант 1","вариант 2"]
["3. Рынок товаров и услуг"]
["Индекс потребительских цен","декабрь к декабрю предыдущего года, %",1,null,null,null,"02"]
["Индекс потребительских цен (среднегодовой)","% к предыдущему году",1,null,null,null,"02"]
["Оборот розничной торговли ","млн. руб. в ценах соответствующих лет",1,null,null,null,"04",null,null,null,null,{"$f":"Адыг!L15+Майкоп!L15+Гиаг!L15+Кош!L15+Красн!L15+Майк!L15+Тахт!L15+Теуч!L15+Шовг!L15","v":0},{"$f":"Адыг!M15+Майкоп!M15+Гиаг!M15+Кош!M15+Красн!M15+Майк!M15+Тахт!M15+Теуч!M15+Шовг!M15","v":0},{"$f":"Адыг!N15+Майкоп!N15+Гиаг!N15+Кош!N15+Красн!N15+Майк!N15+Тахт!N15+Теуч!N15+Шовг!N15","v":0},{"$f":"Адыг!O15+Майкоп!O15+Гиаг!O15+Кош!O15+Красн!O15+Майк!O15+Тахт!O15+Теуч!O15+Шовг!O15","v":0},null,{"$f":"Адыг!Q15+Майкоп!Q15+Гиаг!R15+Кош!R15+Красн!R15+Майк!R15+Тахт!R15+Теуч!R15+Шовг!R15","v":0},null,{"$f":"Адыг!S15+Майкоп!S15+Гиаг!U15+Кош!U15+Красн!U15+Майк!U15+Тахт!U15+Теуч!U15+Шовг!U15","v":0}]
["индекс физического объема                                                   оборота розничной торговли","% к предыдущему году",1,null,null,null,"02"]
["индекс-дефлятор                                                                  оборота розничной торговли","% к предыдущему году",1,null,null,null,"30"]
["Оборот общественного питания","млн. руб. в ценах соответствующих лет",1,null,null,null,"04",null,null,null,null,{"$f":"Адыг!L18+Майкоп!L18+Гиаг!L18+Кош!L18+Красн!L18+Майк!L18+Тахт!L18+Теуч!L18+Шовг!L18","v":0},{"$f":"Адыг!M18+Майкоп!M18+Гиаг!M18+Кош!M18+Красн!M18+Майк!M18+Тахт!M18+Теуч!M18+Шовг!M18","v":0},{"$f":"Адыг!N18+Майкоп!N18+Гиаг!N18+Кош!N18+Красн!N18+Майк!N18+Тахт!N18+Теуч!N18+Шовг!N18","v":0},{"$f":"Адыг!O18+Майкоп!O18+Гиаг!O18+Кош!O18+Красн!O18+Майк!O18+Тахт!O18+Теуч!O18+Шовг!O18","v":0},null,{"$f":"Адыг!Q18+Майкоп!Q18+Гиаг!R18+Кош!R18+Красн!R18+Майк!R18+Тахт!R18+Теуч!R18+Шовг!R18","v":0},null,{"$f":"Адыг!S18+Майкоп!S18+Гиаг!U18+Кош!U18+Красн!U18+Майк!U18+Тахт!U18+Теуч!U18+Шовг!U18","v":0}]
["индекс физического объема                                                                           оборота общественного питания","% к предыдущему году",1,null,null,null,"02"]
["индекс цен                                                                            на продукцию общественного питания","% к предыдущему году",1,null,null,null,"02"]
["Объем платных услуг населению ","млн. руб. в ценах соответствующих лет",1,null,null,null,"04",null,null,null,null,null,null,{"$f":"M21*N22*N23/100/100","v":0},{"$f":"N21*O22*O23/100/100","v":0},null,{"$f":"O21*Q22*Q23/100/100","v":0},null,{"$f":"Q21*S22*S23*100/100","v":0}]
[null,"% к предыдущему году в сопоставимых ценах",1,null,null,null,"02"]
["индекс-дефлятор по платным услугам","% к предыдущему году",1,null,null,null,"30"]
[]
[]
["Макухина Людмила Александровна, 52-51-10"]

{"sheet":"Тахт","index":7,"n_rows":26,"n_cols":20,"rows_kept":26,"cut":false,"hidden":false,"merged":[[1,1,1,17],[8,11,8,12],[8,0,10,0],[8,1,10,1],[8,7,8,10],[9,11,10,11],[9,12,10,12],[25,0,25,10],[8,14,8,19],[9,14,9,15],[9,16,9,17],[9,18,9,19],[9,13,10,13]]}
[]
[null,"К прогнозу на 2026-2028 годы     по Республике Адыгея"]
[]
[null,null,null,null,null,null,null,null,null,null,null,null,"раздел     ПОТРЕБИТЕЛЬСКИЙ РЫНОК"]
[]
[]
[]
[]
[null,"Единица измерения","Код","Доп. Код","Код отрасли","Форма собственности","Измерение","отчет",null,null,null,null,null,"оценка","прогноз"]
[null,null,null,null,null,null,null,1998,1999,2000,2001,"2023 год","2024 год","2025 год","2026 год",null,"2027 год",null,"2028 год"]
[null,null,null,null,null,null,null,null,null,null,null,null,null,null,"вариант 1","вариант 2","вариант 1","вариант 2","вариант 1","вариант 2"]
["3. Рынок товаров и услуг"]
["Индекс потребительских цен","декабрь к декабрю предыдущего года, %",1,null,null,null,"02"]
["Индекс потребительских цен (среднегодовой)","% к предыдущему году",1,null,null,null,"02"]
["Оборот розничной торговли ","млн. руб. в ценах соответствующих лет",1,null,null,null,"04",null,null,null,null,{"$f":"Адыг!L15+Майкоп!L15+Гиаг!L15+Кош!L15+Красн!L15+Майк!L15+Тахт!L15+Теуч!L15+Шовг!L15","v":0},{"$f":"Адыг!M15+Майкоп!M15+Гиаг!M15+Кош!M15+Красн!M15+Майк!M15+Тахт!M15+Теуч!M15+Шовг!M15","v":0},{"$f":"Адыг!N15+Майкоп!N15+Гиаг!N15+Кош!N15+Красн!N15+Майк!N15+Тахт!N15+Теуч!N15+Шовг!N15","v":0},{"$f":"Адыг!O15+Майкоп!O15+Гиаг!O15+Кош!O15+Красн!O15+Майк!O15+Тахт!O15+Теуч!O15+Шовг!O15","v":0},null,{"$f":"Адыг!Q15+Майкоп!Q15+Гиаг!R15+Кош!R15+Красн!R15+Майк!R15+Тахт!R15+Теуч!R15+Шовг!R15","v":0},null,{"$f":"Адыг!S15+Майкоп!S15+Гиаг!U15+Кош!U15+Красн!U15+Майк!U15+Тахт!U15+Теуч!U15+Шовг!U15","v":0}]
["индекс физического объема                                                   оборота розничной торговли","% к предыдущему году",1,null,null,null,"02"]
["индекс-дефлятор                                                                  оборота розничной торговли","% к предыдущему году",1,null,null,null,"30"]
["Оборот общественного питания","млн. руб. в ценах соответствующих лет",1,null,null,null,"04",null,null,null,null,{"$f":"Адыг!L18+Майкоп!L18+Гиаг!L18+Кош!L18+Красн!L18+Майк!L18+Тахт!L18+Теуч!L18+Шовг!L18","v":0},{"$f":"Адыг!M18+Майкоп!M18+Гиаг!M18+Кош!M18+Красн!M18+Майк!M18+Тахт!M18+Теуч!M18+Шовг!M18","v":0},{"$f":"Адыг!N18+Майкоп!N18+Гиаг!N18+Кош!N18+Красн!N18+Майк!N18+Тахт!N18+Теуч!N18+Шовг!N18","v":0},{"$f":"Адыг!O18+Майкоп!O18+Гиаг!O18+Кош!O18+Красн!O18+Майк!O18+Тахт!O18+Теуч!O18+Шовг!O18","v":0},null,{"$f":"Адыг!Q18+Майкоп!Q18+Гиаг!R18+Кош!R18+Красн!R18+Майк!R18+Тахт!R18+Теуч!R18+Шовг!R18","v":0},null,{"$f":"Адыг!S18+Майкоп!S18+Гиаг!U18+Кош!U18+Красн!U18+Майк!U18+Тахт!U18+Теуч!U18+Шовг!U18","v":0}]
["индекс физического объема                                                                           оборота общественного питания","% к предыдущему году",1,null,null,null,"02"]
["индекс цен                                                                            на продукцию общественного питания","% к предыдущему году",1,null,null,null,"02"]
["Объем платных услуг населению ","млн. руб. в ценах соответствующих лет",1,null,null,null,"04",null,null,null,null,null,null,{"$f":"M21*N22*N23/100/100","v":0},{"$f":"N21*O22*O23/100/100","v":0},null,{"$f":"O21*Q22*Q23/100/100","v":0},null,{"$f":"Q21*S22*S23*100/100","v":0}]
[null,"% к предыдущему году в сопоставимых ценах",1,null,null,null,"02"]
["индекс-дефлятор по платным услугам","% к предыдущему году",1,null,null,null,"30"]
[]
[]
["Макухина Людмила Александровна, 52-51-10"]

{"sheet":"Теуч","index":8,"n_rows":26,"n_cols":20,"rows_kept":26,"cut":false,"hidden":false,"merged":[[25,0,25,10],[8,0,10,0],[8,1,10,1],[8,7,8,10],[9,11,10,11],[1,1,1,17],[8,11,8,12],[9,12,10,12],[9,13,10,13],[8,14,8,19],[9,14,9,15],[9,16,9,17],[9,18,9,19]]}
[]
[null,"К прогнозу на 2026-2028 годы     по Республике Адыгея"]
[]
[null,null,null,null,null,null,null,null,null,null,null,null,"раздел     ПОТРЕБИТЕЛЬСКИЙ РЫНОК"]
[]
[]
[]
[]
[null,"Единица измерения","Код","Доп. Код","Код отрасли","Форма собственности","Измерение","отчет",null,null,null,null,null,"оценка","прогноз"]
[null,null,null,null,null,null,null,1998,1999,2000,2001,"2023 год","2024 год","2025 год","2026 год",null,"2027 год",null,"2028 год"]
[null,null,null,null,null,null,null,null,null,null,null,null,null,null,"вариант 1","вариант 2","вариант 1","вариант 2","вариант 1","вариант 2"]
["3. Рынок товаров и услуг"]
["Индекс потребительских цен","декабрь к декабрю предыдущего года, %",1,null,null,null,"02"]
["Индекс потребительских цен (среднегодовой)","% к предыдущему году",1,null,null,null,"02"]
["Оборот розничной торговли ","млн. руб. в ценах соответствующих лет",1,null,null,null,"04",null,null,null,null,{"$f":"Адыг!L15+Майкоп!L15+Гиаг!L15+Кош!L15+Красн!L15+Майк!L15+Тахт!L15+Теуч!L15+Шовг!L15","v":0},{"$f":"Адыг!M15+Майкоп!M15+Гиаг!M15+Кош!M15+Красн!M15+Майк!M15+Тахт!M15+Теуч!M15+Шовг!M15","v":0},{"$f":"Адыг!N15+Майкоп!N15+Гиаг!N15+Кош!N15+Красн!N15+Майк!N15+Тахт!N15+Теуч!N15+Шовг!N15","v":0},{"$f":"Адыг!O15+Майкоп!O15+Гиаг!O15+Кош!O15+Красн!O15+Майк!O15+Тахт!O15+Теуч!O15+Шовг!O15","v":0},null,{"$f":"Адыг!Q15+Майкоп!Q15+Гиаг!R15+Кош!R15+Красн!R15+Майк!R15+Тахт!R15+Теуч!R15+Шовг!R15","v":0},null,{"$f":"Адыг!S15+Майкоп!S15+Гиаг!U15+Кош!U15+Красн!U15+Майк!U15+Тахт!U15+Теуч!U15+Шовг!U15","v":0}]
["индекс физического объема                                                   оборота розничной торговли","% к предыдущему году",1,null,null,null,"02"]
["индекс-дефлятор                                                                  оборота розничной торговли","% к предыдущему году",1,null,null,null,"30"]
["Оборот общественного питания","млн. руб. в ценах соответствующих лет",1,null,null,null,"04",null,null,null,null,{"$f":"Адыг!L18+Майкоп!L18+Гиаг!L18+Кош!L18+Красн!L18+Майк!L18+Тахт!L18+Теуч!L18+Шовг!L18","v":0},{"$f":"Адыг!M18+Майкоп!M18+Гиаг!M18+Кош!M18+Красн!M18+Майк!M18+Тахт!M18+Теуч!M18+Шовг!M18","v":0},{"$f":"Адыг!N18+Майкоп!N18+Гиаг!N18+Кош!N18+Красн!N18+Майк!N18+Тахт!N18+Теуч!N18+Шовг!N18","v":0},{"$f":"Адыг!O18+Майкоп!O18+Гиаг!O18+Кош!O18+Красн!O18+Майк!O18+Тахт!O18+Теуч!O18+Шовг!O18","v":0},null,{"$f":"Адыг!Q18+Майкоп!Q18+Гиаг!R18+Кош!R18+Красн!R18+Майк!R18+Тахт!R18+Теуч!R18+Шовг!R18","v":0},null,{"$f":"Адыг!S18+Майкоп!S18+Гиаг!U18+Кош!U18+Красн!U18+Майк!U18+Тахт!U18+Теуч!U18+Шовг!U18","v":0}]
["индекс физического объема                                                                           оборота общественного питания","% к предыдущему году",1,null,null,null,"02"]
["индекс цен                                                                            на продукцию общественного питания","% к предыдущему году",1,null,null,null,"02"]
["Объем платных услуг населению ","млн. руб. в ценах соответствующих лет",1,null,null,null,"04",null,null,null,null,null,null,{"$f":"M21*N22*N23/100/100","v":0},{"$f":"N21*O22*O23/100/100","v":0},null,{"$f":"O21*Q22*Q23/100/100","v":0},null,{"$f":"Q21*S22*S23*100/100","v":0}]
[null,"% к предыдущему году в сопоставимых ценах",1,null,null,null,"02"]
["индекс-дефлятор по платным услугам","% к предыдущему году",1,null,null,null,"30"]
[]
[]
["Макухина Людмила Александровна, 52-51-10"]

{"sheet":"Шовг","index":9,"n_rows":26,"n_cols":20,"rows_kept":26,"cut":false,"hidden":false,"merged":[[1,1,1,17],[8,11,8,12],[9,13,10,13],[8,0,10,0],[8,1,10,1],[8,7,8,10],[9,11,10,11],[25,0,25,10],[8,14,8,19],[9,14,9,15],[9,16,9,17],[9,18,9,19],[9,12,10,12]]}
[]
[null,"К прогнозу на 2026-2028 годы     по Республике Адыгея"]
[]
[null,null,null,null,null,null,null,null,null,null,null,null,"раздел     ПОТРЕБИТЕЛЬСКИЙ РЫНОК"]
[]
[]
[]
[]
[null,"Единица измерения","Код","Доп. Код","Код отрасли","Форма собственности","Измерение","отчет",null,null,null,null,null,"оценка","прогноз"]
[null,null,null,null,null,null,null,1998,1999,2000,2001,"2023 год","2024 год","2025 год","2026 год",null,"2027 год",null,"2028 год"]
[null,null,null,null,null,null,null,null,null,null,null,null,null,null,"вариант 1","вариант 2","вариант 1","вариант 2","вариант 1","вариант 2"]
["3. Рынок товаров и услуг"]
["Индекс потребительских цен","декабрь к декабрю предыдущего года, %",1,null,null,null,"02"]
["Индекс потребительских цен (среднегодовой)","% к предыдущему году",1,null,null,null,"02"]
["Оборот розничной торговли ","млн. руб. в ценах соответствующих лет",1,null,null,null,"04",null,null,null,null,{"$f":"Адыг!L15+Майкоп!L15+Гиаг!L15+Кош!L15+Красн!L15+Майк!L15+Тахт!L15+Теуч!L15+Шовг!L15","v":0},{"$f":"Адыг!M15+Майкоп!M15+Гиаг!M15+Кош!M15+Красн!M15+Майк!M15+Тахт!M15+Теуч!M15+Шовг!M15","v":0},{"$f":"Адыг!N15+Майкоп!N15+Гиаг!N15+Кош!N15+Красн!N15+Майк!N15+Тахт!N15+Теуч!N15+Шовг!N15","v":0},{"$f":"Адыг!O15+Майкоп!O15+Гиаг!O15+Кош!O15+Красн!O15+Майк!O15+Тахт!O15+Теуч!O15+Шовг!O15","v":0},null,{"$f":"Адыг!Q15+Майкоп!Q15+Гиаг!R15+Кош!R15+Красн!R15+Майк!R15+Тахт!R15+Теуч!R15+Шовг!R15","v":0},null,{"$f":"Адыг!S15+Майкоп!S15+Гиаг!U15+Кош!U15+Красн!U15+Майк!U15+Тахт!U15+Теуч!U15+Шовг!U15","v":0}]
["индекс физического объема                                                   оборота розничной торговли","% к предыдущему году",1,null,null,null,"02"]
["индекс-дефлятор                                                                  оборота розничной торговли","% к предыдущему году",1,null,null,null,"30"]
["Оборот общественного питания","млн. руб. в ценах соответствующих лет",1,null,null,null,"04",null,null,null,null,{"$f":"Адыг!L18+Майкоп!L18+Гиаг!L18+Кош!L18+Красн!L18+Майк!L18+Тахт!L18+Теуч!L18+Шовг!L18","v":0},{"$f":"Адыг!M18+Майкоп!M18+Гиаг!M18+Кош!M18+Красн!M18+Майк!M18+Тахт!M18+Теуч!M18+Шовг!M18","v":0},{"$f":"Адыг!N18+Майкоп!N18+Гиаг!N18+Кош!N18+Красн!N18+Майк!N18+Тахт!N18+Теуч!N18+Шовг!N18","v":0},{"$f":"Адыг!O18+Майкоп!O18+Гиаг!O18+Кош!O18+Красн!O18+Майк!O18+Тахт!O18+Теуч!O18+Шовг!O18","v":0},null,{"$f":"Адыг!Q18+Майкоп!Q18+Гиаг!R18+Кош!R18+Красн!R18+Майк!R18+Тахт!R18+Теуч!R18+Шовг!R18","v":0},null,{"$f":"Адыг!S18+Майкоп!S18+Гиаг!U18+Кош!U18+Красн!U18+Майк!U18+Тахт!U18+Теуч!U18+Шовг!U18","v":0}]
["индекс физического объема                                                                           оборота общественного питания","% к предыдущему году",1,null,null,null,"02"]
["индекс цен                                                                            на продукцию общественного питания","% к предыдущему году",1,null,null,null,"02"]
["Объем платных услуг населению ","млн. руб. в ценах соответствующих лет",1,null,null,null,"04",null,null,null,null,null,null,{"$f":"M21*N22*N23/100/100","v":0},{"$f":"N21*O22*O23/100/100","v":0},null,{"$f":"O21*Q22*Q23/100/100","v":0},null,{"$f":"Q21*S22*S23*100/100","v":0}]
[null,"% к предыдущему году в сопоставимых ценах",1,null,null,null,"02"]
["индекс-дефлятор по платным услугам","% к предыдущему году",1,null,null,null,"30"]
[]
[]
["Макухина Людмила Александровна, 52-51-10"]

{"sheet":"Форма_3п","index":10,"n_rows":105,"n_cols":7,"rows_kept":105,"cut":false,"hidden":true,"merged":[[4,0,6,0],[8,0,10,0],[17,0,24,0],[26,0,32,0],[84,0,89,0],[95,0,100,0],[61,1,62,1],[67,1,67,4],[69,0,76,0],[78,0,82,0],[34,0,65,0],[34,1,35,1],[49,1,50,1],[51,1,52,1],[39,1,40,1],[41,1,42,1],[43,1,44,1],[37,1,38,1],[59,1,60,1],[45,1,46,1],[53,1,54,1],[55,1,56,1],[47,1,48,1],[91,0,93,0],[57,1,58,1]]}
[null,"Показатели развития государственного сектора экономики на 2005 год"]
[null,"(для субъектов Российской Федерации)"]
[null,"(форма № 3п)"]
["№ п.п",null,"Единица измерения","2003 год отчет","2004 год отчет","2005 год оценка","2006 год прогноз"]
["1.","Объем произведенной промышленной продукции (услуг) организациями государственного сектора экономики в действующих ценах ","млн. рублей"]
[null,"индекс промышленного производства ","в % к  пред. году"]
[null,"доля государственного сектора в общем объеме произведенной промышленной продукции (услуг), (всего, в том числе по отраслям  промышленности )*"," %"]
[]
["2. ","Производство продукции сельского хозяйства сельскохозяйственными организациями государственного сектора"]
[null,"в действующих ценах","млн. рублей"]
[null,"индекс производства сельскохозяйственной продукции","в % к  пред. году"]
[null,"доля государственного сектора в общем объеме производства продукции сельского хозяйства сельскохозяйственными организациями "," %"]
[]
["3. ","Инвестиции в основной капитал организаций государственного сектора за счет всех источников финансирования, всего в ценах соответствующих лет","млн. рублей"]
[null,"в сопоставимых ценах ","в % к  пред. году"]
[null,"доля государственного сектора в общем объеме инвестиций в основной капитал"," %"]
[]
["4. ","Среднесписочная численность работников (без внешних совместителей)  организаций госсектора экономики","тыс. чел."]
[null,"в том числе:"]
[null,"промышленность","тыс. человек"]
[null,"сельское хозяйство","тыс. человек"]
[null,"транспорт","тыс. человек"]
[null,"связь","тыс. человек"]
[null,"строительство","тыс. человек"]
[null,"доля численности работников организаций госсектора  в общей численности работников в целом по экономике"," %"]
[]
["5. ","Фонд начисленной заработной платы всех работников организаций госсектора","млн. руб."]
[null,"в том числе:"]
[null,"промышленность","млн. руб."]
[null,"сельское хозяйство","млн. руб."]
[null,"транспорт","млн. руб."]
[null,"связь","млн. руб."]
[null,"строительство","млн. руб."]
[]
["6.","Объем платных услуг населению, оказываемых организациями госсектора (с учетом НДС и налога с продаж), всего","млн. рублей"]
[null,null,"в % к  пред. году"]
[null,"из них: по основным видам платных услуг населению:"]
[null,"бытовые услуги","млн. рублей"]
[null,null,"в % к  пред. году"]
[null,"транспортные услуги","млн. рублей"]
[null,null,"в % к  пред. году"]
[null,"услуги связи","млн. рублей"]
[null,null,"в % к  пред. году"]
[null,"жилищные услуги","млн. рублей"]
[null,null,"в % к  пред. году"]
[null,"коммунальные услуги","млн. рублей"]
[null,null,"в % к  пред. году"]
[null,"услуги учреждений культуры","млн. рублей"]
[null,null,"в % к  пред. году"]
[null,"услуги в системе образования","млн. рублей"]
[null,null,"в % к  пред. году"]
[null,"медицинские услуги","млн. рублей"]
[null,null,"в % к  пред. году"]
[null,"туристские услуги","млн. рублей"]
[null,null,"в % к  пред. году"]
[null,"услуги физической культуры и спорта","- млн. рублей"]
[null,null,"в % к  пред. году "]
[null,"санаторно-оздоровительные услуги","- млн. рублей"]
[null,null,"в % к  пред. году "]
[null,"услуги гостиниц и аналогичных средств размещения","- млн. рублей"]
[null,null,"в % к  пред. году "]
[null,"прочие виды платных услуг","- млн. рублей"]
[null,null,"в % к  пред. году "]
[null,"доля госсектора в общем объеме платных услуг населению"," %"]
[null,"из нее:"]
[null,"по основным видам платных услуг населению, указанным выше"," %"]
[]
[null,"Структура и использование государственной собственности"]
[]
["7. ","Количество организаций госсектора, всего","единиц"]
[null,"в том числе:"]
[null,"по отраслям экономики и промышленности","единиц"]
[null,"по организационно-правовым формам (государственные унитарные предприятия; государственные учреждения; хозяйственные общества с долей госсобственности, превышающей 50% уставного капитала; хозяйственные общества, в уставном капитале которых более 50% акций (долей) находятся в собственности хозяйственных обществ, относящихся к госсектору) (далее – по организационно-правовым формам)","единиц"]
[null,"доля государственного сектора в общем количестве организаций "," %"]
[null,"в том числе:"]
[null,"по отраслям экономики и промышленности","%"]
[null,"по организационно-правовым формам","%"]
[]
["8. ","Количество приватизированных имущественных комплексов государственных унитарных предприятий, всего","единиц"]
[null,null,"в % к  пред. году"]
[null,"в том числе:"]
[null,"по отраслям экономики и промышленности","единиц"]
[null,null,"в % к  пред. году "]
[]
["9. ","Средства, полученные от покупателей государственного имущества,всего","млн. руб."]
[null,"из них:"]
[null,"от продажи акций открытых акционерных обществ","млн. руб."]
[null,"от продажи государственного имущества (без продажи акций открытых акционерных обществ)","млн. руб."]
[null,"из них:"]
[null,"от выкупа земельных участков собственниками объектов недвижимости","млн. руб."]
[]
["10. ","Перечислено денежных средств, полученных от покупателей государственного имущества, всего ","млн. руб."]
[null,"из них:"]
[null,"в федеральный бюджет","млн. руб."]
[]
["11. ","Средства, полученные от использования находящегося в госсобственности имущества, всего ","млн. руб."]
[null,"в том числе:"]
[null,"перечисленные в федеральный бюджет","млн. руб."]
[null,"из них:"]
[null,"дивиденды по акциям организаций госсектора, принадлежащим государству, всего","млн. руб."]
[null,"средства, полученные от сдачи в аренду имущества, находящегося в госсобственности, всего","млн. руб."]
[]
[null,"Примечание. По стоимостным показателям объем в ценах соответствующих лет рассчитываются: 2003 год – отчет,"]
[null,"2004 и 2005 годы – по индексам цен."]
[null,"* - при необходимости можно добавить строки, на этом листе защиты нет"]

{"sheet":"пер2 СНГ","index":11,"n_rows":48,"n_cols":12,"rows_kept":48,"cut":false,"hidden":true,"merged":[]}
[null,"перечень №2",null,"СТРАНЫ СНГ"]
[null,"важнейших видов продукции для разработки прогноза социально-экономического "]
[null,"развития субъекта Российской Федерации на 2003 год по разделу ",null,"Внешнеэкономическая деятельность"]
[null,"Код ТН ВЭД*","Наименование продукции"," Единицы измерения",2003,"отчет",2004,"отчет",2005,"оценка",2006,"прогноз"]
[null,null,null,"в натуральном выражении","в натуральном выражении","Млн. долл. США","в натуральном выражении","Млн. долл. США","в натуральном выражении","Млн. долл. США","в натуральном выражении","Млн. долл. США"]
[null,null,"ЭКСПОРТ"]
[null,2701,"Уголь каменный"]
[null,2709,"Нефть сырая","тыс.тонн"]
[null,2710,"Нефтепродукты","тыс.тонн"]
[null,271121000,"Газ природный","млрд.куб.м"]
[null,2716,"Электроэнергия","млн.кВт-ч"]
[null,3102,"Удобрения азотные","тыс.тонн"]
[null,3104,"Удобрения калийные","тыс.тонн"]
[null,3105,"Удобрения смешанные","тыс.тонн"]
[null,4403,"Лесоматериалы необработанные","тыс.куб.м"]
[null,4407,"Лесоматериалы обработанные","тыс.тонн"]
[null,"4702-4704","Целлюлоза древесная","тыс.тонн"]
[null,72,"Черные металлы","тыс.тонн"]
[null,7403,"Медь рафинированная","тыс.тонн"]
[null,7502,"Никель необработанный","тыс.тонн"]
[null,7601,"Алюминий необработанный","тыс.тонн"]
[null,"84-90","Машины и оборудование","-"]
[null,8703,"Автомобили легковые","тыс.шт."]
[null,8704,"Автомобили грузовые","тыс.шт."]
[null,null,"ИМПОРТ"]
[null,null,"ВСЕГО"]
[null,"0201-0204","Мясо свежее и мороженое","тыс.тонн"]
[null,"0402","Молоко и сливки сгущенные","тыс.тонн"]
[null,"0405","Масло сливочное","тыс.тонн"]
[null,10,"Зерновые культуры","-"]
[null,1512,"Масло подсолнечное","тыс.тонн"]
[null,"170111-170112","Сахар-сырец","тыс.тонн"]
[null,22,"Напитки алкогольные и безалкогольные","-"]
[null,2701,"Уголь каменный","тыс.тонн"]
[null,"4001-4002","Каучук натуральный и синтетический","тыс.тонн"]
[null,5101,"Шерсть","тыс.тонн"]
[null,5201,"Волокно хлопковое, нечесаное","тыс.тонн"]
[null,5301,"Волокно льняное","тыс.тонн"]
[null,72,"Черные металлы","тыс.тонн"]
[null,7202,"Ферросплавы","тыс.тонн"]
[null,"7304-7306","Трубы стальные","тыс.тонн"]
[null,7403,"Медь рафинированная","тыс.тонн"]
[null,7801,"Свинец","тыс.тонн"]
[null,"84-90","Машины и оборудование","-"]
[null,8703,"Автомобили легковые","тыс.шт."]
[null,8704,"Автомобили грузовые","тыс.шт."]
[]
[null,"* - коды указаны  в соответствии с товарной номенклатурой, утвержденной постановлением Правительства Российской Федерации от 30 ноября 2001г. № 830"]

{"sheet":"Пер2СНГБеларусь","index":12,"n_rows":48,"n_cols":12,"rows_kept":48,"cut":false,"hidden":true,"merged":[]}
[null,"перечень №2",null,"ИЗ СТРАН СНГ:","в т.ч.РЕСПУБЛИКА БЕЛАРУСЬ"]
[null,"важнейших видов продукции для разработки прогноза социально-экономического "]
[null,"развития субъекта Российской Федерации на 2003 год по разделу ",null,"Внешнеэкономическая деятельность"]
[null,"Код ТН ВЭД*","Наименование продукции"," Единицы измерения",2003,"отчет",2004,"отчет",2005,"оценка",2006,"прогноз"]
[null,null,null,"в натуральном выражении","в натуральном выражении","Млн. долл. США","в натуральном выражении","Млн. долл. США","в натуральном выражении","Млн. долл. США","в натуральном выражении","Млн. долл. США"]
[null,null,"ЭКСПОРТ"]
[null,2701,"Уголь каменный","тыс.тонн"]
[null,2709,"Нефть сырая","тыс.тонн"]
[null,2710,"Нефтепродукты","тыс.тонн"]
[null,271121000,"Газ природный","млрд.куб.м"]
[null,2716,"Электроэнергия","млн.кВт-ч"]
[null,3102,"Удобрения азотные","тыс.тонн"]
[null,3104,"Удобрения калийные","тыс.тонн"]
[null,3105,"Удобрения смешанные","тыс.тонн"]
[null,4403,"Лесоматериалы необработанные","тыс.куб.м"]
[null,4407,"Лесоматериалы обработанные","тыс.тонн"]
[null,"4702-4704","Целлюлоза древесная","тыс.тонн"]
[null,72,"Черные металлы","тыс.тонн"]
[null,7403,"Медь рафинированная","тыс.тонн"]
[null,7502,"Никель необработанный","тыс.тонн"]
[null,7601,"Алюминий необработанный","тыс.тонн"]
[null,"84-90","Машины и оборудование","-"]
[null,8703,"Автомобили легковые","тыс.шт."]
[null,8704,"Автомобили грузовые","тыс.шт."]
[null,null,"ИМПОРТ"]
[null,"0201-0204","Мясо свежее и мороженое","тыс.тонн"]
[null,"0402","Молоко и сливки сгущенные","тыс.тонн"]
[null,"0405","Масло сливочное","тыс.тонн"]
[null,10,"Зерновые культуры","-"]
[null,1512,"Масло подсолнечное","тыс.тонн"]
[null,"170111-170112","Сахар-сырец","тыс.тонн"]
[null,170199100,"Сахар белый","тыс.тонн"]
[null,22,"Напитки алкогольные и безалкогольные","-"]
[null,2701,"Уголь каменный","тыс.тонн"]
[null,"4001-4002","Каучук натуральный и синтетический","тыс.тонн"]
[null,5101,"Шерсть","тыс.тонн"]
[null,5201,"Волокно хлопковое, нечесаное","тыс.тонн"]
[null,5301,"Волокно льняное","тыс.тонн"]
[null,72,"Черные металлы","тыс.тонн"]
[null,7202,"Ферросплавы","тыс.тонн"]
[null,"7304-7306","Трубы стальные","тыс.тонн"]
[null,7403,"Медь рафинированная","тыс.тонн"]
[null,7801,"Свинец","тыс.тонн"]
[null,"84-90","Машины и оборудование","-"]
[null,8703,"Автомобили легковые","тыс.шт."]
[null,8704,"Автомобили грузовые","тыс.шт."]
[]
[null,"* - коды указаны  в соответствии с товарной номенклатурой, утвержденной постановлением Правительства Российской Федерации от 30 ноября 2001г. № 830"]

{"sheet":"пер2 вне СНГ","index":13,"n_rows":86,"n_cols":12,"rows_kept":86,"cut":false,"hidden":true,"merged":[]}
[null,null,"перечень №2","СТРАНЫ ВНЕ СНГ"]
[null,"важнейших видов продукции для разработки прогноза социально-экономического "]
[null,"развития субъекта Российской Федерации на 2003 год по разделу ",null,"Внешнеэкономическая деятельность"]
[null,"Код ТН ВЭД*","Наименование продукции","Единицы измерения",2003,"отчет",2004,"отчет",2005,"оценка",2006,"прогноз"]
[null,null,null,"в натуральном выражении","в натуральном выражении","Млн. долл. США","в натуральном выражении","Млн. долл. США","в натуральном выражении","Млн. долл. США","в натуральном выражении","Млн. долл. США"]
[null,null,"ЭКСПОРТ"]
[null,1001,"Пшеница и меслин","тыс.тонн"]
[null,"0302-0304","Рыба свежая и мороженая","тыс.тонн"]
[null,220860110,"Водка, дал 100% спирта","тыс.тонн"]
[null,2510,"Фосфаты кальция","тыс.тонн"]
[null,2601,"Руды и концентраты железные","тыс.тонн"]
[null,2701,"Уголь каменный","тыс.тонн"]
[null,2704,"Кокс и полукокс","тыс.тонн"]
[null,2709,"Нефть сырая","тыс.тонн"]
[null,2710,"Нефтепродукты","тыс.тонн"]
[null,"2710114100-2710115900","Бензин автомобильный","тыс.тонн"]
[null,2710192100,"Топливо реактивное","тыс.тонн"]
[null,"2710193100-2710194900","Дизельное топливо","тыс.тонн"]
[null,"2710195100-2710196900","Мазут","тыс.тонн"]
[null,271121000,"Газ природный","млрд.куб.м"]
[null,2716,"Электроэнергия","млн.кВт-ч"]
[null,281410000,"Аммиак безводный","тыс.тонн"]
[null,290511,"Метанол","тыс.тонн"]
[null,3102,"Удобрения азотные","тыс.тонн"]
[null,3104,"Удобрения калийные","тыс.тонн"]
[null,3105,"Удобрения смешанные","тыс.тонн"]
[null,4002,"Каучук синтетический","тыс.тонн"]
[null,4403,"Лесоматериалы необработанные","тыс.куб.м"]
[null,4407,"Лесоматериалы обработанные","тыс.тонн"]
[null,4412,"Фанера клееная","тыс.куб.м"]
[null,"4702-4704","Целлюлоза древесная","тыс.тонн"]
[null,4801,"Бумага газетная","тыс.тонн"]
[null,"5208-5212","Ткани хлопчатобумажные","тыс.кв.м."]
[null,72,"Черные металлы","тыс.тонн"]
[null,"72 (кроме 7201-7204)","Черные металлы (кроме чугуна, ферросплавов, отходов и лома)","тыс.тонн"]
[null,7202,"Ферросплавы","тыс.тонн"]
[null,7207,"Полуфабрикаты из углеродистой стали","тыс.тонн"]
[null,"7208-7212","Прокат плоский из углеродистой стали","тыс.тонн"]
[null,7403,"Медь рафинированная","тыс.тонн"]
[null,7502,"Никель необработанный","тыс.тонн"]
[null,7601,"Алюминий необработанный","тыс.тонн"]
[null,"84-90","Машины и оборудование","-"]
[null,8703,"Автомобили легковые","тыс.шт."]
[null,8704,"Автомобили грузовые","тыс.шт."]
[null,null,"ИМПОРТ"]
[null,"0201-0204","Мясо свежее и мороженое","тыс.тонн"]
[null,"0207","Мясо птицы свежее и мороженое","тыс.тонн"]
[null,"0302-0304","Рыба свежая и мороженая","тыс.тонн"]
[null,"0402","Молоко и сливки сгущенные","тыс.тонн"]
[null,"0405","Масло сливочное","тыс.тонн"]
[null,"0805","Цитрусовые","тыс.тонн"]
[null,"0901","Кофе","тыс.тонн"]
[null,"0902","Чай","тыс.тонн"]
[null,10,"Зерновые культуры","-"]
[null,1001,"Пшеница и меслин","тыс.тонн"]
[null,1003,"Ячмень","тыс.тонн"]
[null,1005,"Кукуруза","тыс.тонн"]
[null,1512,"Масло подсолнечное","тыс.тонн"]
[null,1602,"Изделия и консервы из мяса","тыс.тонн"]
[null,"170111-170112","Сахар-сырец","тыс.тонн"]
[null,170199100,"Сахар белый","тыс.тонн"]
[null,1801,"Какао-бобы","тыс.тонн"]
[null,1806,"Продукты, содержащие какао","-"]
[null,22,"Напитки алкогольные и безалкогольные","-"]
[null,2402,"Сигареты и сигары","-"]
[null,2606,"Руды и концентраты алюминиевые","тыс.тонн"]
[null,2701,"Уголь каменный","тыс.тонн"]
[null,2709,"Нефть сырая","тыс.тонн"]
[null,2710,"Нефтепродукты","тыс.тонн"]
[null,2941,"Антибиотики","-"]
[null,"3003-3004","Медикаменты","-"]
[null,3808,"Химические средства защиты растений","тыс.тонн"]
[null,"4001-4002","Каучук натуральный и синтетический","тыс.тонн"]
[null,5201,"Волокно хлопковое, нечесаное","тыс.тонн"]
[null,"5208-5212","Ткани хлопчатобумажные","тыс.тонн"]
[null,"61-62","Одежда","-"]
[null,6403,"Обувь кожаная","млн.пар"]
[null,72,"Черные металлы","тыс.тонн"]
[null,"72 (кроме 7201-7204)","Черные металлы (кроме чугуна, ферросплавов, отходов и лома)","тыс.тонн"]
[null,"7304-7306","Трубы стальные","тыс.тонн"]
[null,"84-90","Машины и оборудование","-"]
[null,8703,"Автомобили легковые","тыс.шт."]
[null,8704,"Автомобили грузовые","тыс.шт."]
[null,"9401-9403","Мебель","-"]
[]
[null,"* - коды указаны  в соответствии с товарной номенклатурой, утвержденной постановлением Правительства Российской Федерации от 30 ноября 2001г. № 830"]

{"sheet":"Errors","index":14,"n_rows":0,"n_cols":0,"rows_kept":0,"cut":false,"hidden":false,"merged":[]}

{"sheet":"Шаблон","index":15,"n_rows":641,"n_cols":20,"rows_kept":641,"cut":false,"hidden":true,"merged":[[9,16,9,17],[9,18,9,19],[0,0,0,19],[1,0,1,19],[8,0,10,0],[8,1,10,1],[8,7,8,10],[8,14,8,19],[9,11,10,11],[9,12,10,12],[9,13,10,13],[9,14,9,15]]}
["Форма 2п"]
["Основные показатели, представляемые для разработки прогноза социально-экономического развития  Российской Федерации на 2006 год и на период до 2009  года (для субъектов Российской Федерации)"]
[null,1,2]
[]
["Субъект Российской Федерации:","Агинский Бурятский автономный округ"]
["Раздел показателей"]
[]
[]
["Показатели","Единица измерения","Код","Доп. Код","Код отрасли","Форма собственности","Измерение","отчет",null,null,null,"отчет","отчет","оценка","прогноз"]
[null,null,null,null,null,null,null,1998,1999,2000,2001,2004,2005,2006,2007,null,2008,null,2009]
[null,null,null,null,null,null,null,null,null,null,null,null,null,null,"вариант 1","вариант 2","вариант 1","вариант 2","вариант 1","вариант 2"]
["1. Демографические показатели"]
["Численность постоянного населения (среднегодовая) - всего","тыс. человек",1,null,null,null,"04"]
[null,"% к предыдущему году",1,null,null,null,"02"]
["городского","тыс. человек",1,null,null,null,"04"]
[null,"% к предыдущему году",1,null,null,null,"02"]
["сельского ","тыс. человек",1,null,null,null,"04"]
[null,"% к предыдущему году",1,null,null,null,"02"]
["Ожидаемая продолжительность жизни при рождении","число лет",1,null,null,null,"04"]
["Общий коэффициент рождаемости","человек на 1000 населения",1,null,null,null,"04"]
["Общий коэффициент смертности","человек на 1000 населения",1,null,null,null,"04"]
["Коэффициент естественного прироста","человек на 1000 населения",1,null,null,null,"04"]
["Коэффициент миграционного прироста","человек на 10 000 населения",1,null,null,null,"04"]
[]
["2. Производство товаров и услуг"]
["2.1. Выпуск товаров и услуг"]
["Выпуск товаров и услуг","млн. руб. в основных ценах соответствующих лет",1,null,null,null,"04"]
["2.2. Валовой региональный продукт"]
["Валовой региональный продукт - всего","млн. руб. в ценах соответствующих лет",1,null,null,null,"04"]
[null,"% к предыдущему году в сопоставимых ценах",1,null,null,null,"02"]
[null,"индекс-дефлятор, % к пред. году",1,null,null,null,"30"]
["2.3. Промышленное производство"]
["Индекс промышленного производства (РАЗДЕЛ C: Добыча полезных ископаемых+РАЗДЕЛ D: Обрабатывающие производства+РАЗДЕЛ E: Производство и распределение электроэнергии, газа и воды)","% к предыдущему году",1,null,null,null,"30"]
["Добыча полезных ископаемых"]
["Объем отгруженных товаров собственного производства, выполненных работ и услуг собственными силами - РАЗДЕЛ C: Добыча полезных ископаемых","млн. руб. в ценах соответствующих лет",1,null,null,null,"04"]
["Индекс производства - РАЗДЕЛ C: Добыча полезных ископаемых","% к предыдущему году",1,null,null,null,"02"]
["Индекс-дефлятор - РАЗДЕЛ C: Добыча полезных ископаемых","% к предыдущему году",1,null,null,null,"30"]
["Объем отгруженных товаров собственного производства, выполненных работ и услуг собственными силами - Подраздел CA: Добыча топливно-энергетических полезных ископаемых","млн. руб. в ценах соответствующих лет",1,null,null,null,"04"]
["Индекс производства - Подраздел CA: Добыча топливно-энергетических полезных ископаемых","% к предыдущему году",1,null,null,null,"02"]
["Индекс-дефлятор - Подраздел CA: Добыча топливно-энергетических полезных ископаемых","% к предыдущему году",1,null,null,null,"30"]
["Объем отгруженных товаров собственного производства, выполненных работ и услуг собственными силами - Подраздел CB: Добыча полезных ископаемых, кроме топливно-энергетических","млн. руб. в ценах соответствующих лет",1,null,null,null,"04"]
["Индекс производства - Подраздел CB: Добыча полезных ископаемых, кроме топливно-энергетических","% к предыдущему году",1,null,null,null,"02"]
["Индекс-дефлятор - Подраздел CB: Добыча полезных ископаемых, кроме топливно-энергетических","% к предыдущему году",1,null,null,null,"30"]
["Обрабатывающие производства"]
["Объем отгруженных товаров собственного производства, выполненных работ и услуг собственными силами - РАЗДЕЛ D: Обрабатывающие производства","млн. руб. в ценах соответствующих лет",1,null,null,null,"04"]
["Индекс производства - РАЗДЕЛ D: Обрабатывающие производства","% к предыдущему году",1,null,null,null,"02"]
["Индекс-дефлятор - РАЗДЕЛ D: Обрабатывающие производства","% к предыдущему году",1,null,null,null,"30"]
["Объем отгруженных товаров собственного производства, выполненных работ и услуг собственными силами - Подраздел DA: Производство пищевых продуктов, включая напитки, и табака","млн. руб. в ценах соответствующих лет",1,null,null,null,"04"]
["Индекс производства -  Подраздел DA: Производство пищевых продуктов, включая напитки, и табака","% к предыдущему году",1,null,null,null,"02"]
["Индекс-дефлятор -  Подраздел DA: Производство пищевых продуктов, включая напитки, и табака","% к предыдущему году",1,null,null,null,"30"]
["Объем отгруженных товаров собственного производства, выполненных работ и услуг собственными силами - Подраздел DB: Текстильное и швейное производство","млн. руб. в ценах соответствующих лет",1,null,null,null,"04"]
["Индекс производства -  Подраздел DB: Текстильное и швейное производство","% к предыдущему году",1,null,null,null,"02"]
["Индекс-дефлятор -  Подраздел DB: Текстильное и швейное производство","% к предыдущему году",1,null,null,null,"30"]
["Объем отгруженных товаров собственного производства, выполненных работ и услуг собственными силами - Подраздел DC: Производство кожи, изделий из кожи и производство обуви","млн. руб. в ценах соответствующих лет",1,null,null,null,"04"]
["Индекс производства -  Подраздел DC: Производство кожи, изделий из кожи и производство обуви","% к предыдущему году",1,null,null,null,"02"]
["Индекс-дефлятор -  Подраздел DC: Производство кожи, изделий из кожи и производство обуви","% к предыдущему году",1,null,null,null,"30"]
["Объем отгруженных товаров собственного производства, выполненных работ и услуг собственными силами - Подраздел DD: Обработка древесины и производство изделий из дерева","млн. руб. в ценах соответствующих лет",1,null,null,null,"04"]
["Индекс производства -  Подраздел DD: Обработка древесины и производство изделий из дерева","% к предыдущему году",1,null,null,null,"02"]
["Индекс-дефлятор -  Подраздел DD: Обработка древесины и производство изделий из дерева","% к предыдущему году",1,null,null,null,"30"]
["Объем отгруженных товаров собственного производства, выполненных работ и услуг собственными силами - Подраздел DE: Целлюлозно-бумажное производство; издательская и полиграфическая деятельность","млн. руб. в ценах соответствующих лет",1,null,null,null,"04"]
["Индекс производства -  Подраздел DE: Целлюлозно-бумажное производство; издательская и полиграфическая деятельность","% к предыдущему году",1,null,null,null,"02"]
["Индекс-дефлятор -  Подраздел DE: Целлюлозно-бумажное производство; издательская и полиграфическая деятельность","% к предыдущему году",1,null,null,null,"30"]
["Объем отгруженных товаров собственного производства, выполненных работ и услуг собственными силами - Подраздел DF: Производство кокса, нефтепродуктов и ядерных материалов","млн. руб. в ценах соответствующих лет",1,null,null,null,"04"]
["Индекс производства -  Подраздел DF: Производство кокса, нефтепродуктов и ядерных материалов","% к предыдущему году",1,null,null,null,"02"]
["Индекс-дефлятор -  Подраздел DF: Производство кокса, нефтепродуктов и ядерных материалов","% к предыдущему году",1,null,null,null,"30"]
["Объем отгруженных товаров собственного производства, выполненных работ и услуг собственными силами - Подраздел DG: Химическое производство","млн. руб. в ценах соответствующих лет",1,null,null,null,"04"]
["Индекс производства -  Подраздел DG: Химическое производство","% к предыдущему году",1,null,null,null,"02"]
["Индекс-дефлятор -  Подраздел DG: Химическое производство","% к предыдущему году",1,null,null,null,"30"]
["Объем отгруженных товаров собственного производства, выполненных работ и услуг собственными силами - Подраздел DH: Производство резиновых и пластмассовых изделий","млн. руб. в ценах соответствующих лет",1,null,null,null,"04"]
["Индекс производства -  Подраздел DH: Производство резиновых и пластмассовых изделий","% к предыдущему году",1,null,null,null,"02"]
["Индекс-дефлятор -  Подраздел DH: Производство резиновых и пластмассовых изделий","% к предыдущему году",1,null,null,null,"30"]
["Объем отгруженных товаров собственного производства, выполненных работ и услуг собственными силами - Подраздел DI: Производство прочих неметаллических минеральных продуктов","млн. руб. в ценах соответствующих лет",1,null,null,null,"04"]
["Индекс производства -  Подраздел DI: Производство прочих неметаллических минеральных продуктов","% к предыдущему году",1,null,null,null,"02"]
["Индекс-дефлятор -  Подраздел DI: Производство прочих неметаллических минеральных продуктов","% к предыдущему году",1,null,null,null,"30"]
["Объем отгруженных товаров собственного производства, выполненных работ и услуг собственными силами - Подраздел DJ: Металлургическое производство и производство готовых металлических изделий","млн. руб. в ценах соответствующих лет",1,null,null,null,"04"]
["Индекс производства -  Подраздел DJ: Металлургическое производство и производство готовых металлических изделий","% к предыдущему году",1,null,null,null,"02"]
["Индекс-дефлятор -  Подраздел DJ: Металлургическое производство и производство готовых металлических изделий","% к предыдущему году",1,null,null,null,"30"]
["Объем отгруженных товаров собственного производства, выполненных работ и услуг собственными силами - 38.9: Производство машин и оборудования без производства оружия и боеприпасов","млн. руб. в ценах соответствующих лет",1,null,null,null,"04"]
["Индекс производства -  38.9: Производство машин и оборудования без производства оружия и боеприпасов","% к предыдущему году",1,null,null,null,"02"]
["Индекс-дефлятор -  38.9: Производство машин и оборудования без производства оружия и боеприпасов","% к предыдущему году",1,null,null,null,"30"]
["Объем отгруженных товаров собственного производства, выполненных работ и услуг собственными силами - Подраздел DL: Производство электрооборудования, электронного и оптического оборудования","млн. руб. в ценах соответствующих лет",1,null,null,null,"04"]
["Индекс производства - Подраздел DL: Производство электрооборудования, электронного и оптического оборудования","% к предыдущему году",1,null,null,null,"02"]
["Индекс-дефлятор - Подраздел DL: Производство электрооборудования, электронного и оптического оборудования","% к предыдущему году",1,null,null,null,"30"]
["Объем отгруженных товаров собственного производства, выполненных работ и услуг собственными силами - Подраздел DM: Производство транспортных средств и оборудования","млн. руб. в ценах соответствующих лет",1,null,null,null,"04"]
["Индекс производства - Подраздел DM: Производство транспортных средств и оборудования","% к предыдущему году",1,null,null,null,"02"]
["Индекс-дефлятор - Подраздел DM: Производство транспортных средств и оборудования","% к предыдущему году",1,null,null,null,"30"]
["Объем отгруженных товаров собственного производства, выполненных работ и услуг собственными силами - Подраздел DN: Прочие производства","млн. руб. в ценах соответствующих лет",1,null,null,null,"04"]
["Индекс производства - Подраздел DN: Прочие производства","% к предыдущему году",1,null,null,null,"02"]
["Индекс-дефлятор - Подраздел DN: Прочие производства","% к предыдущему году",1,null,null,null,"30"]
["Производство и распределение электроэнергии, газа и воды"]
["Объем отгруженных товаров собственного производства, выполненных работ и услуг собственными силами - РАЗДЕЛ E: Производство и распределение электроэнергии, газа и воды","млн. руб. в ценах соответствующих лет",1,null,null,null,"04"]
["Индекс производства - РАЗДЕЛ E: Производство и распределение электроэнергии, газа и воды","% к предыдущему году",1,null,null,null,"02"]
["Индекс-дефлятор - РАЗДЕЛ E: Производство и распределение электроэнергии, газа и воды","% к предыдущему году",1,null,null,null,"30"]
["Потребление электроэнергии","млн.кВт.ч.",1,null,null,null,"04"]
["в том числе по группам потребителей:"]
["Базовые потребители","млн. кВт. ч.",1,null,null,null,"04"]
["Население","млн. кВт. ч.",1,null,null,null,"04"]
["Прочие потребители","млн. кВт. ч.",1,null,null,null,"04"]
["Средние тарифы на электроэнергию, отпущенную различным категориям потребителей","руб./тыс.кВт.ч.",1,null,null,null,"04"]
["Индекс тарифов ","% к предыдущему году",1,null,null,null,"02"]
[null,"% декабрь к декабрю предыдущего года",1,null,null,null,"02"]
[" в том числе по группам потребителей:"]
["Базовые потребители","руб./тыс.кВт.ч.",1,null,null,null,"04"]
["Индекс тарифов ","% к предыдущему году",1,null,null,null,"02"]
[null,"% декабрь к декабрю предыдущего года",1,null,null,null,"02"]
["Население","руб./тыс.кВт.ч.",1,null,null,null,"04"]
["Индекс тарифов ","% к предыдущему году",1,null,null,null,"02"]
[null,"% декабрь к декабрю предыдущего года",1,null,null,null,"02"]
["Прочие потребители","руб./тыс.кВт.ч.",1,null,null,null,"04"]
["Индекс тарифов ","% к предыдущему году",1,null,null,null,"02"]
[null,"% декабрь к декабрю предыдущего года",1,null,null,null,"02"]
["2.4. Рыболовство и рыбоводство и предоставление услуг в этих областях"]
["Объем отгруженных товаров собственного производства, выполненных работ и услуг собственными силами - РАЗДЕЛ B: Рыболовство (05.01)","млн. руб. в ценах соответствующих лет",1,null,null,null,"04"]
["Индекс производства -  РАЗДЕЛ B: Рыболовство (05.01)","% к предыдущему году",1,null,null,null,"02"]
["Объем отгруженных товаров собственного производства, выполненных работ и услуг собственными силами - РАЗДЕЛ B: Рыбоводство (05.02)","млн. руб. в ценах соответствующих лет",1,null,null,null,"04"]
["Индекс производства -  РАЗДЕЛ B: Рыбоводство (05.02)","% к предыдущему году",1,null,null,null,"02"]
["2.5. Сельское хозяйство"]
["Объем продукции сельского хозяйства в хозяйствах всех категорий (Разделы ОКВЭД: 01.1+01.2+01.3)","млн.руб. в ценах соответствующих лет",1,null,null,null,"04"]
["Индекс производства продукции сельского хозяйства в хозяйствах всех категорий","% к предыдущему году",1,null,null,null,"02"]
["Индекс-дефлятор продукции сельского хозяйства в хозяйствах всех категорий","% к предыдущему году",1,null,null,null,"30"]
["в том числе:"]
["Растениеводство","млн.руб. в ценах соответствующих лет",1,null,null,null,"04"]
["Индекс производства продукции растениеводства","% к предыдущему году",1,null,null,null,"02"]
["Индекс-дефлятор продукции растениеводства","% к предыдущему году",1,null,null,null,"30"]
["Животноводство","млн.руб. в ценах соответствующих лет",1,null,null,null,"04"]
["Индекс производства продукции животноводства","% к предыдущему году",1,null,null,null,"02"]
["Индекс-дефлятор продукции животноводства","% к предыдущему году",1,null,null,null,"30"]
["Продукция сельского хозяйства по категориям хозяйств:"]
["Продукция в сельскохозяйственных организациях","млн. руб. в ценах соответствующих лет",1,null,null,null,"04"]
["Индекс производства продукции в сельскохозяйственных организациях","% к предыдущему году",1,null,null,null,"02"]
["Продукция в крестьянских (фермерских) хозяйствах и у индивидуальных предпринимателей","млн. руб. в ценах соответствующих лет",1,null,null,null,"04"]
["Индекс производства продукции в крестьянских (фермерских) хозяйствах и у индивидуальных предпринимателей","% к предыдущему году",1,null,null,null,"02"]
["Продукция в хозяйствах населения","млн. руб. в ценах соответствующих лет",1,null,null,null,"04"]
["Индекс производства продукции в хозяйствах населения","% к предыдущему году",1,null,null,null,"02"]
["2.6. Транспорт и связь"]
["Протяженность автомобильных дорог общего пользования с твердым покрытием","км",1,null,null,null,"04"]
["Протяженность автомобильных дорог федерального значения","км",1,null,null,null,"04"]
["Густота автомобильных дорог общего пользования с твердым покрытием","километров дорог на 1 000 квадратных километров территории",1,null,null,null,"04"]
["Удельный вес автомобильных дорог с твердым покрытием в общей протяженности автомобильных дорог общего пользования","%",1,null,null,null,"04"]
["Наличие квартирных телефонных аппаратов сети общего пользования в городской местности","штук на 1 000 человек",1,null,null,null,"04"]
["Наличие квартирных телефонных аппаратов сети общего пользования в сельской местности","штук на 1 000 человек",1,null,null,null,"04"]
["2.7. Производство важнейших видов продукции в натуральном выражении "]
["Зерно (в весе после доработки)","тыс. тонн",1,null,null,null,"04"]
["Сахарная свекла","тыс. тонн",1,null,null,null,"04"]
["Подсолнечник","тыс. тонн",1,null,null,null,"04"]
["Картофель","тыс. тонн",1,null,null,null,"04"]
["Овоши","тыс. тонн",1,null,null,null,"04"]
["Скот и птица","тыс. тонн",1,null,null,null,"04"]
["Молоко","тыс. тонн",1,null,null,null,"04"]
["Яйца","млн. штук",1,null,null,null,"04"]
["Древесина деловая","тыс. плот. куб. м",1,null,null,null,"04"]
["Уголь","тыс. тонн",1,null,null,null,"04"]
["Нефть, включая газовый конденсат","тыс. тонн",1,null,null,null,"04"]
["Газ естественный (природный)","млн. куб. м ",1,null,null,null,"04"]
["Мясо, включая субпродукты 1 категории","тыс. тонн",1,null,null,null,"04"]
["Цельномолочная продукция (в пересчете на молоко)","тыс. тонн",1,null,null,null,"04"]
["Сахар-песок, всего","тыс. тонн",1,null,null,null,"04"]
["Масла растительные ","тыс. тонн",1,null,null,null,"04"]
["Товарная пищевая рыбная продукция, включая консервы рыбные","тыс. тонн",1,null,null,null,"04"]
["Спирт этиловый из пищевого сырья и технический- всего","тыс. дкл",1,null,null,null,"04"]
[" в т.ч. спирт этиловый из пищевого сырья","тыс. дкл",1,null,null,null,"04"]
["Водка и ликеро-водочные изделия ","тыс. дкл",1,null,null,null,"04"]
["Коньяки","тыс. дкл",1,null,null,null,"04"]
["Вина виноградные","тыс. дкл",1,null,null,null,"04"]
["Вина плодовые","тыс. дкл",1,null,null,null,"04"]
["Вина шампанские и игристые","тыс. дкл",1,null,null,null,"04"]
["Hапитки винные (виноградные и плодовые) с содержанием спирта более 20% объемных ","тыс. дкл",1,null,null,null,"04"]
["Hапитки винные (виноградные и плодовые) с содержанием спирта до 20% объемных ","тыс. дкл",1,null,null,null,"04"]
["Напитки слабоалкогольные с содержанием этилового спирта не более 9%","тыс. дкл",1,null,null,null,"04"]
["Пиво","тыс. дкл",1,null,null,null,"04"]
["Ткани хлопчатобумажные готовые","тыс. кв. м",1,null,null,null,"04"]
["Изделия трикотажные","тыс. штук",1,null,null,null,"04"]
["Обувь","тыс. пар",1,null,null,null,"04"]
["Пиломатериалы","тыс. куб. м",1,null,null,null,"04"]
["Бумага","тыс. тонн",1,null,null,null,"04"]
["Бензин автомобильный","тыс. тонн",1,null,null,null,"04"]
["Топливо дизельное","тыс. тонн",1,null,null,null,"04"]
["Масла смазочные нефтяные","тыс. тонн",1,null,null,null,"04"]
["Мазут топочный","тыс. тонн",1,null,null,null,"04"]
["Удобрения минеральные (в пересчете на 100% питательных веществ)","тыс. тонн",1,null,null,null,"04"]
["Полиэтилен","тонн",1,null,null,null,"04"]
["Шины для грузовых автомобилей, автобусов и троллейбусов ","тыс. штук",1,null,null,null,"04"]
["Шины для легковых автомобилей ","тыс. штук",1,null,null,null,"04"]
["Цемент","тыс. тонн",1,null,null,null,"04"]
["Кирпич строительный","млн. условных кирпичей",1,null,null,null,"04"]
["Блоки и камни мелкие стеновые (без блоков ячеистого бетона)","млн. условных кирпичей",1,null,null,null,"04"]
["Блоки крупные стеновые (включая бетонные блоки стен подвалов)","млн. условных кирпичей",1,null,null,null,"04"]
["Блоки мелкие стеновые из ячеистого бетона","млн. условных кирпичей",1,null,null,null,"04"]
["Прокат черных металлов готовый","тыс. тонн",1,null,null,null,"04"]
["Трубы стальные","тыс. тонн",1,null,null,null,"04"]
["Станки металлорежущие","штук",1,null,null,null,"04"]
["Тракторы","тыс. штук",1,null,null,null,"04"]
["Телевизоры","тыс. штук",1,null,null,null,"04"]
["Холодильники и морозильники бытовые","тыс. штук",1,null,null,null,"04"]
["Машины стиральные бытовые","тыс. штук",1,null,null,null,"04"]
["Электропылесосы","тыс. штук",1,null,null,null,"04"]
["Ювелирные изделия в фактических ценах (без НДС и акциза)","тыс. руб.",1,null,null,null,"04"]
["Автомобили грузовые","штук",1,null,null,null,"04"]
["Автомобили легковые ","тыс. штук",1,null,null,null,"04"]
["Мотоциклы","штук",1,null,null,null,"04"]
["Электроэнергия","млрд. кВт. ч",1,null,null,null,"04"]
["в том числе вырабатываемая:"]
[" АЭС","млрд. кВт. ч",1,null,null,null,"04"]
[" ТЭС","млрд. кВт. ч",1,null,null,null,"04"]
[" ГЭС ","млрд. кВт. ч",1,null,null,null,"04"]
[]
["2.8. Строительство"]
["Объем работ, выполненных по виду деятельности \"строительство\" (Раздел F)","млн. руб. в ценах соответствующих лет",1,null,null,null,"04"]
[null,"% к предыдущему году в сопоставимых ценах",1,null,null,null,"02"]
[null,"индекс-дефлятор, % к пред. году",1,null,null,null,"30"]
[]
["3. Рынок товаров и услуг"]
["Индекс потребительских цен","декабрь к декабрю предыдущего года, %",1,null,null,null,"02"]
["Индекс потребительских цен (среднегодовой)","% к предыдущему году",1,null,null,null,"02"]
["Оборот розничной торговли ","млн. руб. в ценах соответствующих лет",1,null,null,null,"04"]
["Индекс физического объема оборота розничной торговли","% к предыдущему году",1,null,null,null,"02"]
["Индекс-дефлятор оборота розничной торговли","% к предыдущему году",1,null,null,null,"30"]
["Оборот общественного питания","млн. руб. в ценах соответствующих лет",1,null,null,null,"04"]
["Индекс физического объема оборота общественного питания","% к предыдущему году",1,null,null,null,"02"]
["Индекс цен на продукцию общественного питания","% к предыдущему году",1,null,null,null,"02"]
["Объем платных услуг населению ","млн. руб. в ценах соответствующих лет",1,null,null,null,"04"]
[null,"% к предыдущему году в сопоставимых ценах",1,null,null,null,"02"]
["Индекс-дефлятор по платным услугам","% к предыдущему году",1,null,null,null,"30"]
["в том числе:"]
["бытовые услуги","млн. руб. в ценах соответствующих лет",1,null,null,null,"04"]
[null,"% к предыдущему году в сопоставимых ценах",1,null,null,null,"02"]
["транспортные услуги","млн. руб. в ценах соответствующих лет",1,null,null,null,"04"]
[null,"% к предыдущему году в сопоставимых ценах",1,null,null,null,"02"]
["услуги связи","млн. руб. в ценах соответствующих лет",1,null,null,null,"04"]
[null,"% к предыдущему году в сопоставимых ценах",1,null,null,null,"02"]
["жилищные услуги","млн. руб. в ценах соответствующих лет",1,null,null,null,"04"]
[null,"% к предыдущему году в сопоставимых ценах",1,null,null,null,"02"]
["коммунальные услуги","млн. руб. в ценах соответствующих лет",1,null,null,null,"04"]
[null,"% к предыдущему году в сопоставимых ценах",1,null,null,null,"02"]
["услуги учреждений культуры","млн. руб. в ценах соответствующих лет",1,null,null,null,"04"]
[null,"% к предыдущему году в сопоставимых ценах",1,null,null,null,"02"]
["туристские услуги","млн. руб. в ценах соответствующих лет",1,null,null,null,"04"]
[null,"% к предыдущему году в сопоставимых ценах",1,null,null,null,"02"]
["услуги физической культуры и спорта","млн. руб. в ценах соответствующих лет",1,null,null,null,"04"]
[null,"% к предыдущему году в сопоставимых ценах",1,null,null,null,"02"]
["медицинские услуги","млн. руб. в ценах соответствующих лет",1,null,null,null,"04"]
[null,"% к предыдущему году в сопоставимых ценах",1,null,null,null,"02"]
["санаторно-оздоровительные услуги","млн. руб. в ценах соответствующих лет",1,null,null,null,"04"]
[null,"% к предыдущему году в сопоставимых ценах",1,null,null,null,"02"]
["ветеринарные услуги","млн. руб. в ценах соответствующих лет",1,null,null,null,"04"]
[null,"% к предыдущему году в сопоставимых ценах",1,null,null,null,"02"]
["услуги правового характера","млн. руб. в ценах соответствующих лет",1,null,null,null,"04"]
[null,"% к предыдущему году в сопоставимых ценах",1,null,null,null,"02"]
["услуги в системе образования","млн. руб. в ценах соответствующих лет",1,null,null,null,"04"]
[null,"% к предыдущему году в сопоставимых ценах",1,null,null,null,"02"]
["прочие виды платных услуг населению","млн. руб. в ценах соответствующих лет",1,null,null,null,"04"]
[]
["4. Внешнеэкономическая деятельность"]
["Экспорт товаров и услуг - всего"," млн. долл. США",1,null,null,null,"04"]
["Экспорт услуг"," млн. долл. США",1,null,null,null,"04"]
["Импорт товаров и услуг - всего"," млн. долл. США",1,null,null,null,"04"]
["Импорт услуг"," млн. долл. США",1,null,null,null,"04"]
["Страны вне СНГ"]
["Экспорт товаров и услуг - всего"," млн. долл. США",1,null,null,null,"04"]
["в том числе по группам товаров:"]
["Продовольственные товары и сельскохозяйственное сырье (кроме текстильного) (код ТН ВЭД 01-24)"," млн. долл. США",1,null,null,null,"04"]
["Топливно-энергетические товары (27)"," млн. долл. США",1,null,null,null,"04"]
["Продукция химической промышленности, каучук (28-40) "," млн. долл. США",1,null,null,null,"04"]
["Древесина и целлюлозно-бумажные изделия (44-49)"," млн. долл. США",1,null,null,null,"04"]
["Металлы и изделия из них (72-83)"," млн. долл. США",1,null,null,null,"04"]
["Машины, оборудование и транспортные средства (84-90)"," млн. долл. США",1,null,null,null,"04"]
["Экспорт услуг"," млн. долл. США",1,null,null,null,"04"]
["Импорт товаров и услуг - всего"," млн. долл. США",1,null,null,null,"04"]
["в том числе по группам товаров:"]
["Продовольственные товары и сельскохозяйственное сырье (кроме текстильного) (код ТН ВЭД 01-24)"," млн. долл. США",1,null,null,null,"04"]
["Продукция химической промышленности, каучук (28-40) "," млн. долл. США",1,null,null,null,"04"]
["Текстиль, текстильные  изделия  и обувь (50 - 67)"," млн. долл. США",1,null,null,null,"04"]
["Металлы и изделия из них (72-83)"," млн. долл. США",1,null,null,null,"04"]
["Машины, оборудование и транспортные средства (84-90)"," млн. долл. США",1,null,null,null,"04"]
["Импорт услуг"," млн. долл. США",1,null,null,null,"04"]
["Из стран вне СНГ - Страны Балтии (справочно)"]
["Экспорт товаров и услуг - всего"," млн. долл. США",1,null,null,null,"04"]
["Экспорт услуг"," млн. долл. США",1,null,null,null,"04"]
["Импорт товаров и услуг - всего"," млн. долл. США",1,null,null,null,"04"]
["Импорт услуг"," млн. долл. США",1,null,null,null,"04"]
["Государства-участники СНГ "]
["Экспорт товаров и услуг - всего"," млн. долл. США",1,null,null,null,"04"]
["в том числе по группам товаров:"]
["Продовольственные товары и сельскохозяйственное сырье (кроме текстильного) (код ТН ВЭД 01-24)"," млн. долл. США",1,null,null,null,"04"]
["Топливно-энергетические товары (27)"," млн. долл. США",1,null,null,null,"04"]
["Продукция химической промышленности, каучук (28-40) "," млн. долл. США",1,null,null,null,"04"]
["Древесина и целлюлозно-бумажные изделия (44-49)"," млн. долл. США",1,null,null,null,"04"]
["Металлы и изделия из них (72-83)"," млн. долл. США",1,null,null,null,"04"]
["Машины, оборудование и транспортные средства (84-90)"," млн. долл. США",1,null,null,null,"04"]
["Экспорт услуг"," млн. долл. США",1,null,null,null,"04"]
["Импорт товаров и услуг - всего"," млн. долл. США",1,null,null,null,"04"]
["в том числе по группам товаров:"]
["Продовольственные товары и сельскохозяйственное сырье (кроме текстильного) (код ТН ВЭД 01-24)"," млн. долл. США",1,null,null,null,"04"]
["Продукция химической промышленности, каучук (28-40) "," млн. долл. США",1,null,null,null,"04"]
["Текстиль, текстильные  изделия  и обувь (50 - 67)"," млн. долл. США",1,null,null,null,"04"]
["Металлы и изделия из них (72-83)"," млн. долл. США",1,null,null,null,"04"]
["Машины, оборудование и транспортные средства (84-90)"," млн. долл. США",1,null,null,null,"04"]
["Импорт услуг"," млн. долл. США",1,null,null,null,"04"]
[]
["5. Малое предпринимательство"]
["Количество малых предприятий - всего по состоянию на конец года","тыс. единиц",1,null,null,null,"04"]
["в том числе по видам экономической деятельности:"]
["РАЗДЕЛ C: Добыча полезных ископаемых","единиц",1,null,null,null,"04"]
["РАЗДЕЛ D: Обрабатывающие производства","единиц",1,null,null,null,"04"]
["РАЗДЕЛ E: Производство и распределение электроэнергии, газа и воды","единиц",1,null,null,null,"04"]
["РАЗДЕЛ F: Строительство","единиц",1,null,null,null,"04"]
["РАЗДЕЛ G: Оптовая и розничная торговля; ремонт автотранспортных средств, мотоциклов, бытовых изделий и предметов личного пользования","единиц",1,null,null,null,"04"]
["Среднесписочная численность работников (без внешних совместителей) , занятых на малых предприятиях - всего","тыс. человек",1,null,null,null,"04"]
["в том числе по видам экономической деятельности:"]
["РАЗДЕЛ C: Добыча полезных ископаемых","тыс. человек",1,null,null,null,"04"]
["РАЗДЕЛ D: Обрабатывающие производства","тыс. человек",1,null,null,null,"04"]
["РАЗДЕЛ E: Производство и распределение электроэнергии, газа и воды","тыс. человек",1,null,null,null,"04"]
["РАЗДЕЛ F: Строительство","тыс. человек",1,null,null,null,"04"]
["РАЗДЕЛ G: Оптовая и розничная торговля; ремонт автотранспортных средств, мотоциклов, бытовых изделий и предметов личного пользования","тыс. человек",1,null,null,null,"04"]
["Оборот малых предприятий","млн. руб. в ценах соответствующих лет",1,null,null,null,"04"]
["Индекс производства","% к предыдущему году",1,null,null,null,"02"]
["в том числе по видам экономической деятельности:"]
["Оборот малых предприятий - РАЗДЕЛ C: Добыча полезных ископаемых","млн. руб. в ценах соответствующих лет",1,null,null,null,"04"]
["Индекс производства - РАЗДЕЛ C: Добыча полезных ископаемых","% к предыдущему году",1,null,null,null,"02"]
["Оборот малых предприятий - РАЗДЕЛ D: Обрабатывающие производства","млн. руб. в ценах соответствующих лет",1,null,null,null,"04"]
["Индекс производства - РАЗДЕЛ D: Обрабатывающие производства","% к предыдущему году",1,null,null,null,"02"]
["Оборот малых предприятий - РАЗДЕЛ E: Производство и распределение электроэнергии, газа и воды","млн. руб. в ценах соответствующих лет",1,null,null,null,"04"]
["Индекс производства - РАЗДЕЛ E: Производство и распределение электроэнергии, газа и воды","% к предыдущему году",1,null,null,null,"02"]
["Оборот малых предприятий - РАЗДЕЛ F: Строительство","млн. руб. в ценах соответствующих лет",1,null,null,null,"04"]
["Индекс производства - РАЗДЕЛ F: Строительство","% к предыдущему году",1,null,null,null,"02"]
["Оборот малых предприятий - РАЗДЕЛ G: Оптовая и розничная торговля; ремонт автотранспортных средств, мотоциклов, бытовых изделий и предметов личного пользования","млн. руб. в ценах соответствующих лет",1,null,null,null,"04"]
["Индекс производства - РАЗДЕЛ G: Оптовая и розничная торговля; ремонт автотранспортных средств, мотоциклов, бытовых изделий и предметов личного пользования","% к предыдущему году",1,null,null,null,"02"]
[]
["6. Инвестиции"]
["Инвестиции в основной капитал за счет всех источников финансирования - всего","млн. руб. в ценах соответствующих лет",1,null,null,null,"04"]
["Индекс физического объема","% к предыдущему году в сопоставимых ценах",1,null,null,null,"02"]
["Индекс-дефлятор","% к предыдущему году",1,null,null,null,"30"]
["Инвестиции в основной капитал за счет всех источников финансирования (без субъектов малого предпринимательства и параметров неформальной деятельности) - всего","млн. руб. в ценах соответствующих лет",1,null,null,null,"04"]
["Индекс физического объема","% к предыдущему году в сопоставимых ценах",1,null,null,null,"02"]
["Индекс-дефлятор","% к предыдущему году",1,null,null,null,"30"]
["в том числе по видам экономической деятельности (без субъектов малого предпринимательства и параметров неформальной деятельности):"]
["РАЗДЕЛ A: Сельское хозяйство, охота и лесное хозяйство","млн. руб. в ценах соответствующих лет",1,null,null,null,"04"]
["Индекс физического объема","% к предыдущему году в сопоставимых ценах",1,null,null,null,"02"]
["РАЗДЕЛ B: Рыболовство, рыбоводство","млн. руб. в ценах соответствующих лет",1,null,null,null,"04"]
["Индекс физического объема","% к предыдущему году в сопоставимых ценах",1,null,null,null,"02"]
["РАЗДЕЛ C: Добыча полезных ископаемых","млн. руб. в ценах соответствующих лет",1,null,null,null,"04"]
["Индекс физического объема","% к предыдущему году в сопоставимых ценах",1,null,null,null,"02"]
["Подраздел CA: Добыча топливно-энергетических полезных ископаемых","млн. руб. в ценах соответствующих лет",1,null,null,null,"04"]
["Индекс физического объема","% к предыдущему году в сопоставимых ценах",1,null,null,null,"02"]
["Подраздел CB: Добыча полезных ископаемых, кроме топливно-энергетических","млн. руб. в ценах соответствующих лет",1,null,null,null,"04"]
["Индекс физического объема","% к предыдущему году в сопоставимых ценах",1,null,null,null,"02"]
["РАЗДЕЛ D: Обрабатывающие производства","млн. руб. в ценах соответствующих лет",1,null,null,null,"04"]
["Индекс физического объема","% к предыдущему году в сопоставимых ценах",1,null,null,null,"02"]
["Подраздел DA: Производство пищевых продуктов, включая напитки, и табака","млн. руб. в ценах соответствующих лет",1,null,null,null,"04"]
["Индекс физического объема","% к предыдущему году в сопоставимых ценах",1,null,null,null,"02"]
["Подраздел DB: Текстильное и швейное производство","млн. руб. в ценах соответствующих лет",1,null,null,null,"04"]
["Индекс физического объема","% к предыдущему году в сопоставимых ценах",1,null,null,null,"02"]
["Подраздел DC: Производство кожи, изделий из кожи и производство обуви","млн. руб. в ценах соответствующих лет",1,null,null,null,"04"]
["Индекс физического объема","% к предыдущему году в сопоставимых ценах",1,null,null,null,"02"]
["Подраздел DD: Обработка древесины и производство изделий из дерева","млн. руб. в ценах соответствующих лет",1,null,null,null,"04"]
["Индекс физического объема","% к предыдущему году в сопоставимых ценах",1,null,null,null,"02"]
["Подраздел DE: Целлюлозно-бумажное производство; издательская и полиграфическая деятельность","млн. руб. в ценах соответствующих лет",1,null,null,null,"04"]
["Индекс физического объема","% к предыдущему году в сопоставимых ценах",1,null,null,null,"02"]
["Подраздел DF: Производство кокса, нефтепродуктов и ядерных материалов","млн. руб. в ценах соответствующих лет",1,null,null,null,"04"]
["Индекс физического объема","% к предыдущему году в сопоставимых ценах",1,null,null,null,"02"]
["Подраздел DG: Химическое производство","млн. руб. в ценах соответствующих лет",1,null,null,null,"04"]
["Индекс физического объема","% к предыдущему году в сопоставимых ценах",1,null,null,null,"02"]
["Подраздел DH: Производство резиновых и пластмассовых изделий","млн. руб. в ценах соответствующих лет",1,null,null,null,"04"]
["Индекс физического объема","% к предыдущему году в сопоставимых ценах",1,null,null,null,"02"]
["Подраздел DI: Производство прочих неметаллических минеральных продуктов","млн. руб. в ценах соответствующих лет",1,null,null,null,"04"]
["Индекс физического объема","% к предыдущему году в сопоставимых ценах",1,null,null,null,"02"]
["Подраздел DJ: Металлургическое производство и производство готовых металлических изделий","млн. руб. в ценах соответствующих лет",1,null,null,null,"04"]
["Индекс физического объема","% к предыдущему году в сопоставимых ценах",1,null,null,null,"02"]
["Подраздел DK: Производство машин и оборудования","млн. руб. в ценах соответствующих лет",1,null,null,null,"04"]
["Индекс физического объема","% к предыдущему году в сопоставимых ценах",1,null,null,null,"02"]
["Подраздел DL: Производство электрооборудования, электронного и оптического оборудования","млн. руб. в ценах соответствующих лет",1,null,null,null,"04"]
["Индекс физического объема","% к предыдущему году в сопоставимых ценах",1,null,null,null,"02"]
["Подраздел DM: Производство транспортных средств и оборудования","млн. руб. в ценах соответствующих лет",1,null,null,null,"04"]
["Индекс физического объема","% к предыдущему году в сопоставимых ценах",1,null,null,null,"02"]
["Подраздел DN: Прочие производства","млн. руб. в ценах соответствующих лет",1,null,null,null,"04"]
["Индекс физического объема","% к предыдущему году в сопоставимых ценах",1,null,null,null,"02"]
["РАЗДЕЛ E: Производство и распределение электроэнергии, газа и воды","млн. руб. в ценах соответствующих лет",1,null,null,null,"04"]
["Индекс физического объема","% к предыдущему году в сопоставимых ценах",1,null,null,null,"02"]
["РАЗДЕЛ F: Строительство","млн. руб. в ценах соответствующих лет",1,null,null,null,"04"]
["Индекс физического объема","% к предыдущему году в сопоставимых ценах",1,null,null,null,"02"]
["РАЗДЕЛ G: Оптовая и розничная торговля; ремонт автотранспортных средств, мотоциклов, бытовых изделий и предметов личного пользования","млн. руб. в ценах соответствующих лет",1,null,null,null,"04"]
["Индекс физического объема","% к предыдущему году в сопоставимых ценах",1,null,null,null,"02"]
["РАЗДЕЛ H: Гостиницы и рестораны","млн. руб. в ценах соответствующих лет",1,null,null,null,"04"]
["Индекс физического объема","% к предыдущему году в сопоставимых ценах",1,null,null,null,"02"]
["РАЗДЕЛ I: Транспорт и связь","млн. руб. в ценах соответствующих лет",1,null,null,null,"04"]
["Индекс физического объема","% к предыдущему году в сопоставимых ценах",1,null,null,null,"02"]
["РАЗДЕЛ J: Финансовая деятельность","млн. руб. в ценах соответствующих лет",1,null,null,null,"04"]
["Индекс физического объема","% к предыдущему году в сопоставимых ценах",1,null,null,null,"02"]
["РАЗДЕЛ K: Операции с недвижимым имуществом, аренда и предоставление услуг","млн. руб. в ценах соответствующих лет",1,null,null,null,"04"]
["Индекс физического объема","% к предыдущему году в сопоставимых ценах",1,null,null,null,"02"]
["РАЗДЕЛ L: Государственное управление и обеспечение военной безопасности; обязательное социальное обеспечение","млн. руб. в ценах соответствующих лет",1,null,null,null,"04"]
["Индекс физического объема","% к предыдущему году в сопоставимых ценах",1,null,null,null,"02"]
["РАЗДЕЛ M: Образование","млн. руб. в ценах соответствующих лет",1,null,null,null,"04"]
["Индекс физического объема","% к предыдущему году в сопоставимых ценах",1,null,null,null,"02"]
["РАЗДЕЛ N: Здравоохранение и предоставление социальных услуг","млн. руб. в ценах соответствующих лет",1,null,null,null,"04"]
["Индекс физического объема","% к предыдущему году в сопоставимых ценах",1,null,null,null,"02"]
["РАЗДЕЛ O: Предоставление прочих коммунальных, социальных и персональных услуг","млн. руб. в ценах соответствующих лет",1,null,null,null,"04"]
["Индекс физического объема","% к предыдущему году в сопоставимых ценах",1,null,null,null,"02"]
["РАЗДЕЛ Q: Деятельность экстерриториальных организаций","млн. руб. в ценах соответствующих лет",1,null,null,null,"04"]
["Индекс физического объема","% к предыдущему году в сопоставимых ценах",1,null,null,null,"02"]
["Инвестиции в основной капитал по источникам финансирования без субъектов малого предпринимательства и параметров неформальной деятельности:"]
["Собственные средства предприятий","млн. руб. в ценах соответствующих лет",1,null,null,null,"04"]
["из них:"]
["прибыль","млн. руб. в ценах соответствующих лет",1,null,null,null,"04"]
["амортизация","млн. руб. в ценах соответствующих лет",1,null,null,null,"04"]
["Привлеченные средства","млн. руб. в ценах соответствующих лет",1,null,null,null,"04"]
["из них:"]
["кредиты банков","млн. руб. в ценах соответствующих лет",1,null,null,null,"04"]
["в том числе кредиты иностранных банков","млн. руб. в ценах соответствующих лет",1,null,null,null,"04"]
["заемные средства других организаций","млн. руб. в ценах соответствующих лет",1,null,null,null,"04"]
["бюджетные средства","млн. руб. в ценах соответствующих лет",1,null,null,null,"04"]
["в том числе:"]
["из федерального бюджета","млн. руб. в ценах соответствующих лет",1,null,null,null,"04"]
["из него по федеральной адресной инвестиционной программе","млн. руб. в ценах соответствующих лет",1,null,null,null,"04"]
["из бюджетов субъектов федерации","млн. руб. в ценах соответствующих лет",1,null,null,null,"04"]
["средства внебюджетных фондов","млн. руб. в ценах соответствующих лет",1,null,null,null,"04"]
["средства населения на индивидуальное жилищное строительство (индивидуальные застройщики)","млн. руб. в ценах соответствующих лет",1,null,null,null,"04"]
["прямые иностранные инвестиции","млн. руб. в ценах соответствующих лет",1,null,null,null,"04"]
["средства от эмиссии акций","млн. руб. в ценах соответствующих лет",1,null,null,null,"04"]
["Инвестиции в основной капитал, направляемые на реализацию федеральных целевых программ за счет всех источников финансирования","млн. руб. в ценах соответствующих лет",1,null,null,null,"04"]
[" в том числе:"]
["за счет федерального бюджета - всего","млн. руб. в ценах соответствующих лет",1,null,null,null,"04"]
["за счет бюджета субъекта Российской Федерации - всего","млн. руб. в ценах соответствующих лет",1,null,null,null,"04"]
["Иностранные инвестиции","тыс. долл. США",1,null,null,null,"04"]
[null,"% к предыдущему году",1,null,null,null,"02"]
["прямые","тыс. долл. США",1,null,null,null,"04"]
[null,"% к предыдущему году",1,null,null,null,"02"]
["портфельные","тыс. долл. США",1,null,null,null,"04"]
[null,"% к предыдущему году",1,null,null,null,"02"]
["прочие (торговые кредиты, кредиты международных финансовых организаций, банковские вклады и др.)","тыс. долл. США",1,null,null,null,"04"]
[null,"% к предыдущему году",1,null,null,null,"02"]
[]
["Создание новой стоимости","млн. руб. в ценах соответствующих лет",1,null,null,null,"04"]
["Ликвидация основных фондов по полной учетной стоимости","млн. руб. в ценах соответствующих лет",1,null,null,null,"04"]
["Стоимость основных фондов по полной учетной стоимости на конец года","млн. руб. в ценах соответствующих лет",1,null,null,null,"04"]
[]
["7. Финансы"]
["Доходы"]
["Прибыль прибыльных организаций","млн.руб.",1,null,null,null,"04"]
["Справочно: сальдо прибылей и убытков","млн.руб.",1,null,null,null,"04"]
["Амортизационные отчисления","млн.руб.",1,null,null,null,"04"]
["Налоги на прибыль, доходы","млн.руб.",1,null,null,null,"04"]
["налог на прибыль организаций","млн.руб.",1,null,null,null,"04"]
["налог на доходы физических лиц","млн.руб.",1,null,null,null,"04"]
["Налоги и взносы на социальные нужды","млн.руб.",1,null,null,null,"04"]
["Налоги на товары (работы, услуги), реализуемые на территории Российской Федерации","млн.руб.",1,null,null,null,"04"]
["из них:"]
["налог на добавленную стоимость ","млн.руб.",1,null,null,null,"04"]
["акцизы ","млн.руб.",1,null,null,null,"04"]
["Налоги на совокупный доход","млн.руб.",1,null,null,null,"04"]
["Налоги на имущество","млн.руб.",1,null,null,null,"04"]
["Налоги, сборы и регулярные платежи за пользование природными ресурсами","млн.руб.",1,null,null,null,"04"]
["из них:"]
["налог на добычу полезных ископаемых","млн.руб.",1,null,null,null,"04"]
["Прочие налоговые доходы","млн.руб.",1,null,null,null,"04"]
["Неналоговые доходы","млн.руб.",1,null,null,null,"04"]
["Прочие доходы","млн.руб.",1,null,null,null,"04"]
["Итого доходов","млн.руб.",1,null,null,null,"04"]
["Сальдо взаимоотношений с федеральным уровнем власти","млн.руб.",1,null,null,null,"04"]
["Средства, передаваемые на федеральный уровень власти","млн.руб.",1,null,null,null,"04"]
["в федеральный бюджет","млн.руб.",1,null,null,null,"04"]
["часть единого социального налога, централизуемая государственными внебюджетными фондами","млн.руб.",1,null,null,null,"04"]
["Средства, получаемые от федерального уровня власти","млн.руб.",1,null,null,null,"04"]
["из федерального бюджета","млн.руб.",1,null,null,null,"04"]
["от государственных внебюджетных фондов","млн.руб.",1,null,null,null,"04"]
["Всего доходов","млн.руб.",1,null,null,null,"04"]
["Расходы"]
["Расходы за чет средств, остающихся в распоряжении организаций","млн.руб.",1,null,null,null,"04"]
["из них:"]
["на инвестиции","млн.руб.",1,null,null,null,"04"]
["Затраты на государственные инвестиции","млн.руб.",1,null,null,null,"04"]
["из них за счет:"]
["средств федерального бюджета","млн.руб.",1,null,null,null,"04"]
["средств бюджета субъекта Федерации","млн.руб.",1,null,null,null,"04"]
["Общегосударственные вопросы","млн.руб.",1,null,null,null,"04"]
["обслуживание государственного и муниципального долга","млн.руб.",1,null,null,null,"04"]
["фундаментальные исследования","млн.руб.",1,null,null,null,"04"]
["Национальная оборона","млн.руб.",1,null,null,null,"04"]
["Национальная безопасность и правоохранительная деятельность","млн.руб.",1,null,null,null,"04"]
["Национальная экономика","млн.руб.",1,null,null,null,"04"]
["Жилищно-коммунальное хозяйство","млн.руб.",1,null,null,null,"04"]
["Охрана окружающей среды","млн.руб.",1,null,null,null,"04"]
["Социально-культурные мероприятия","млн.руб.",1,null,null,null,"04"]
["из них:"]
["образование","млн.руб.",1,null,null,null,"04"]
["культура, кинематография и средства массовой информации","млн.руб.",1,null,null,null,"04"]
["здравоохранение и спорт","млн.руб.",1,null,null,null,"04"]
["социальная политика","млн.руб.",1,null,null,null,"04"]
["в том числе:"]
["пенсионное обеспечение","млн.руб.",1,null,null,null,"04"]
["социальное обслуживание населения","млн.руб.",1,null,null,null,"04"]
["социальное обеспечение населения","млн.руб.",1,null,null,null,"04"]
["борьба с беспризорностью, опека, попечительство","млн.руб.",1,null,null,null,"04"]
["другие вопросы в области социальной политики","млн.руб.",1,null,null,null,"04"]
["Прочие расходы","млн.руб.",1,null,null,null,"04"]
["Всего расходов","млн.руб.",1,null,null,null,"04"]
["Превышение доходов над расходами (+), или расходов на доходами (-)","млн.руб.",1,null,null,null,"04"]
[]
["8. Денежные доходы и расходы населения"]
["Доходы - всего","млн.руб.",1,null,null,null,"04"]
["в том числе:"]
["доходы от предпринимательской деятельности","млн.руб.",1,null,null,null,"04"]
["оплата труда","млн.руб.",1,null,null,null,"04"]
["социальные выплаты - всего","млн.руб.",1,null,null,null,"04"]
["пенсии","млн.руб.",1,null,null,null,"04"]
["пособия и социальная помощь","млн.руб.",1,null,null,null,"04"]
["стипендии","млн.руб.",1,null,null,null,"04"]
["доходы от собственности","млн.руб.",1,null,null,null,"04"]
["другие доходы","млн.руб.",1,null,null,null,"04"]
["Реальные располагаемые денежные доходы населения","% к предыдущему году",1,null,null,null,"02"]
["Денежные доходы в расчете на душу населения в месяц","рублей",1,null,null,null,"04"]
["Расходы и сбережения - всего","млн.руб.",1,null,null,null,"04"]
["в том числе:"," "]
["покупка товаров и оплата услуг","млн.руб.",1,null,null,null,"04"]
["из них покупка товаров","млн.руб.",1,null,null,null,"04"]
["обязательные платежи и разнообразные взносы","млн.руб.",1,null,null,null,"04"]
["другие расходы","млн.руб.",1,null,null,null,"04"]
["Превышение доходов над расходами (+), или расходов над доходами (-)","млн.руб.",1,null,null,null,"04"]
["Средний размер назначенных месячных пенсий пенсионеров, состоящих на учете в отделениях Пенсионного фонда РФ","руб.",1,null,null,null,"04"]
["Реальный размер назначенных пенсий","% к предыдущему году",1,null,null,null,"02"]
["Величина прожиточного минимума в среднем на душу населения в месяц","руб.",1,null,null,null,"04"]
["Численность населения с денежными доходами ниже прожиточного минимума в % ко всему населению","%",1,null,null,null,"04"]
[]
["9. Труд и занятость"]
["Численность трудовых ресурсов","тыс. человек",1,null,null,null,"04"]
["Численность занятых в экономике (среднегодовая) - всего","тыс. человек",1,null,null,null,"04"]
["Распределение среднегодовой численности занятых в экономике по формам собственности:"," "]
["государственная и муниципальная форма собственности","тыс. человек",1,null,null,null,"04"]
["собственность общественных и религиозных организаций (объединений)","тыс. человек",1,null,null,null,"04"]
["смешанная российская форма собственности","тыс. человек",1,null,null,null,"04"]
["иностранная, совместная российская и иностранная формы собственности","тыс. человек",1,null,null,null,"04"]
["частная форма собственности","тыс. человек",1,null,null,null,"04"]
["в том числе занятые:"," ",1,null,null,null,"04"]
["в крестьянских (фермерских) хозяйствах (включая наемных работников)","тыс. человек",1,null,null,null,"04"]
["на частных предприятиях","тыс. человек",1,null,null,null,"04"]
["индивидуальным трудом и по найму у отдель-ных граждан, включая занятых в домашнем хозяйстве производством товаров и услуг для реализации (включая личное подсобное хозяйство)","тыс. человек",1,null,null,null,"04"]
["Учащиеся в трудоспособном возрасте, обучающиеся с отрывом от производства","тыс. человек",1,null,null,null,"04"]
["Лица в трудоспособном возрасте не занятые трудовой деятельностью и учебой","тыс. человек",1,null,null,null,"04"]
["Уровень безработицы (по методологии МОТ)","%",1,null,null,null,"04"]
["Уровень зарегистрированной безработицы","%",1,null,null,null,"04"]
["Численность безработных, рассчитанная по методологии МОТ","тыс. человек",1,null,null,null,"04"]
["Численность безработных, зарегистрированных в органах государственной службы занятости","тыс. человек",1,null,null,null,"04"]
["Численность незанятых граждан, зарегистрированных в органах государственной службы занятости, в расчете на одну заявленную вакансию","человек",1,null,null,null,"04"]
["Среднесписочная численность работников организаций - всего","тыс. человек",1,null,null,null,"04"]
["Фонд заработной платы работников","млн.руб. ",1,null,null,null,"04"]
["Выплаты социального характера - всего","млн.руб. ",1,null,null,null,"04"]
["Просроченная задолженность по заработной плате работников на конец года к среднемесячному фонду заработной платы","%",1,null,null,null,"04"]
[]
["10. Развитие социальной сферы"]
["Численность детей в дошкольных образовательных учреждениях","тыс.человек",1,null,null,null,"04"]
["Численность учащихся в учреждениях:"]
["общеобразовательных","человек",1,null,null,null,"04"]
["начального профессионального образования","тыс.человек",1,null,null,null,"04"]
["среднего профессионального образования","тыс.человек",1,null,null,null,"04"]
["высшего профессионального образования","тыс.человек",1,null,null,null,"04"]
["Выпуск специалистов учреждениями:"," "]
["среднего профессионального образования","человек",1,null,null,null,"04"]
["высшего профессионального образования","человек",1,null,null,null,"04"]
["Численность обучающихся в первую смену в дневных учреждениях общего образования в % к общему числу обучающихся в этих учреждениях"," %",1,null,null,null,"04"]
["город"," %",1,null,null,null,"04"]
["село"," %",1,null,null,null,"04"]
["Число заболеваний, зарегистрированных у больных с впервые установленном диагнозом (по основным классам болезней)","единиц на 1000 человек населения",1,null,null,null,"04"]
["Обеспеченность:"]
["больничными койками"," коек на 10 тыс.жителей",1,null,null,null,"04"]
["в том числе койками"]
["интенсивного лечения "," коек на 10 тыс. населения",1,null,null,null,"04"]
["восстановительного лечения "," коек на 10 тыс. населения",1,null,null,null,"04"]
["для лечения хронических больных"," коек на 10 тыс. населения",1,null,null,null,"04"]
["в стационарных учреждениях социального обслуживания для престарелых и инвалидов (взрослых и детей)","мест на 10 тыс. Населения",1,null,null,null,"04"]
["стационаров дневного пребывания"," коек на 10 тыс. населения",1,null,null,null,"04"]
["амбулаторно-поликлиническими учреждениями","посещений в смену на 10 тыс. населения",1,null,null,null,"04"]
["врачами","чел. на 10 тыс. населения",1,null,null,null,"04"]
["в том числе:"]
["врачами общей практики (семейными врачами)","чел. на 10 тыс. населения",1,null,null,null,"04"]
["средним медицинским персоналом","чел. на 10 тыс. населения",1,null,null,null,"04"]
["общедоступными  библиотеками","учрежд. на 100 тыс.населения",1,null,null,null,"04"]
["учреждениями культурно-досугового типа","учрежд. на 100 тыс.населения",1,null,null,null,"04"]
["дошкольными образовательными учреждениями","мест на 1 000 детей дошкольного возраста",1,null,null,null,"04"]
["Ввод в эксплуатацию жилых домов за счет всех источников финансирования","тыс. кв. м общей площади",1,null,null,null,"04"]
["в том числе за счет:"]
["средств федерального бюджета","тыс. кв. м общей площади",1,null,null,null,"04"]
["средств бюджетов субъектов Российской Федерации и средств местного бюджета","тыс. кв. м общей площади",1,null,null,null,"04"]
["из общего итога - индивидуальные жилые дома, построенные населением за свой счет и с помощью кредитов","тыс. кв. м общей площади",1,null,null,null,"04"]
["Общая площадь жилых помещений, приходящаяся на 1 жителя  (на конец года)","кв. м",1,null,null,null,"04"]
["Стоимость предоставляемых населению жилищно-коммунальных услуг, рассчитанная по экономически обоснованным тарифам","тыс. руб.",1,null,null,null,"04"]
["Фактический уровень платежей населения за жилье и коммунальные услуги ","%",1,null,null,null,"04"]
["Число зарегистрированных преступлений","единиц на 100 тыс. населения",1,null,null,null,"04"]
["Численность пенсионеров, состоящих на учете в Пенсионном фонде","тыс. чел.",1,null,null,null,"04"]
["Численность пенсионеров, состоящих на учете в Пенсионном фонде","человек на 1 000 человек населения",1,null,null,null,"04"]
[]
["11. Охрана окружающей среды"]
["Инвестиции в основной капитал, направленные на охрану окружающей среды и рациональное использование природных ресурсов за счет всех источников финансирования","млн.руб. в ценах соответствующих лет",1,null,null,null,"04"]
["из них за счет:"]
["средств федерального бюджета","млн.руб. в ценах соответствующих лет",1,null,null,null,"04"]
["бюджетов субъектов Российской Федерации и местных бюджетов","млн.руб. в ценах соответствующих лет",1,null,null,null,"04"]
["собственных средств предприятий","млн.руб. в ценах соответствующих лет",1,null,null,null,"04"]
["Сброс загрязненных сточных вод в поверхностные водные объекты","млн.куб.м",1,null,null,null,"04"]
[null,"% к предыдущему году",1,null,null,null,"02"]
["Выбросы загрязняющих веществ в атмосферный воздух, отходящих от стационарных источников","тыс.т.",1,null,null,null,"04"]
[null,"% к предыдущему году",1,null,null,null,"02"]
["Объем водопотребления (использования свежей воды)","млн.куб.м",1,null,null,null,"04"]
[null,"% к предыдущему году",1,null,null,null,"02"]
["Объем оборотного и повторно-последовательного использования воды","млн.куб.м",1,null,null,null,"04"]
[null,"% к предыдущему году",1,null,null,null,"02"]
[]
["12. Туризм"]
["Количество иностранных посетителей (нерезидентов):","тыс. человек",1,null,null,null,"04"]
[null,"% к предыдущему году",1,null,null,null,"02"]
["- СНГ","тыс. человек",1,null,null,null,"04"]
[null,"% к предыдущему году",1,null,null,null,"02"]
["- вне СНГ","тыс. человек",1,null,null,null,"04"]
[null,"% к предыдущему году",1,null,null,null,"02"]
["в том числе экскурсантов","тыс. человек",1,null,null,null,"04"]
[null,"% к предыдущему году",1,null,null,null,"02"]
["- СНГ","тыс. человек",1,null,null,null,"04"]
[null,"% к предыдущему году",1,null,null,null,"02"]
["- вне СНГ","тыс. человек",1,null,null,null,"04"]
[null,"% к предыдущему году",1,null,null,null,"02"]
["Количество российских посетителей из других регионов (резидентов)","тыс. человек",1,null,null,null,"04"]
[null,"% к предыдущему году",1,null,null,null,"02"]
["в том числе экскурсантов","тыс. человек",1,null,null,null,"04"]
[null,"% к предыдущему году",1,null,null,null,"02"]
["Количество выезжавших в поездки жителей региона","тыс. человек",1,null,null,null,"04"]
[null,"% к предыдущему году",1,null,null,null,"02"]
["Объемы потребления иностранных посетителей с разбивкой","тыс. долл. США",1,null,null,null,"04"]
[null,"% к предыдущему году",1,null,null,null,"02"]
["- СНГ","тыс. долл. США",1,null,null,null,"04"]
[null,"% к предыдущему году",1,null,null,null,"02"]
["- вне СНГ","тыс. долл. США",1,null,null,null,"04"]
[null,"% к предыдущему году",1,null,null,null,"02"]
["Объемы потребления российских посетителей ","тыс. долл. США",1,null,null,null,"04"]
[null,"% к предыдущему году",1,null,null,null,"02"]
["Объемы затрат жителей региона на поездки (с разбивкой по целям)","тыс. долл. США",1,null,null,null,"04"]
[null,"% к предыдущему году",1,null,null,null,"02"]
["Индексы цен на услуги предприятий туриндустрии","%, декабрь к декабрю предыдущего года",1,null,null,null,"30"]
["услуги гостиниц и прочих мест проживания","%, декабрь к декабрю предыдущего года",1,null,null,null,"30"]
["общественное питание","%, декабрь к декабрю предыдущего года",1,null,null,null,"30"]
["экскурсионное обслуживание","%, декабрь к декабрю предыдущего года",1,null,null,null,"30"]
["городской транспорт","%, декабрь к декабрю предыдущего года",1,null,null,null,"30"]
["междугородный автобус","%, декабрь к декабрю предыдущего года",1,null,null,null,"30"]
["железнодорожный транспорт","%, декабрь к декабрю предыдущего года",1,null,null,null,"30"]

{"sheet":"Cond_2p","index":16,"n_rows":32,"n_cols":17,"rows_kept":32,"cut":false,"hidden":true,"merged":[]}
[13,15,17]
[35,38,41]
[45,48,51,54,57,60,63,66,69,72,75,78,81,84,87]
[94,96,97,98]
[118,129,131,133]
[221,225,227,229,231,233,235,237,239,241,243,245,247,249,251]
[259,261,262,263,264,265,266]
[268,270,271,272,273,274]
[282,284,285,286,287,288,289]
[291,293,294,295,296,297]
[333,337,339,341,347,377,379,381,383,385,387,389,391,393,395,397,399]
[341,343,345]
[347,349,351,353,355,357,359,361,363,365,367,369,371,373,375]
[402,404,405]
[406,408,410,411,416,417,418,419]
[411,413,415]
[424,426,428,430]
[458,439,441,444,445,446,450,451,452,455,456,457]
[460,461,462]
[463,464,465]
[466,458,459]
[483,485,486,487,488]
[488,490,491,492,493,494]
[496,468,471,475,478,479,480,481,482,483,495]
[500,502,503,504,508,509]
[504,505,506,507]
[512,514,516,517]
[579,581,582,583]
[592,594,595,596]
[607,609,611]
[613,615,617]
[625,627,629]

{"sheet":"Subjects","index":17,"n_rows":114,"n_cols":2,"rows_kept":114,"cut":false,"hidden":true,"merged":[]}
["Агинский Бурятский автономный округ"]
["Алтайский край"]
["Амурская область"]
["Архангельская область"]
["Астраханская область"]
["Белгородская область"]
["Брянская область"]
["Владимирская область"]
["Волгоградская область"]
["Вологодская область"]
["Воронежская область"]
["Еврейская автономная область"]
["Ивановская область"]
["Иркутская область"]
["Кабардино-Балкарская Республика"]
["Калининградская область"]
["Калужская область"]
["Камчатская область"]
["Карачаево-Черкесская Республика"]
["Кемеровская область"]
["Кировская область"]
["Корякский автономный округ"]
["Костромская область"]
["Краснодарский край"]
["Красноярский край"]
["Курганская область"]
["Курская область"]
["Ленинградская область"]
["Липецкая область"]
["Магаданская область"]
["Москва"]
["Московская область"]
["Мурманская область"]
["Ненецкий автономный округ"]
["Нижегородская область"]
["Новгородская область"]
["Новосибирская область"]
["Омская область"]
["Оренбургская область"]
["Орловская область"]
["Пензенская область"]
["Пермский край"]
["Приморский край"]
["Псковская область"]
["Республика Адыгея"]
["Республика Алтай"]
["Республика Башкортостан"]
["Республика Бурятия"]
["Республика Дагестан"]
["Республика Ингушетия"]
["Республика Калмыкия"]
["Республика Карелия"]
["Республика Коми"]
["Республика Марий Эл"]
["Республика Мордовия"]
["Республика Саха (Якутия)"]
["Республика Северная Осетия-Алания"]
["Республика Татарстан"]
["Республика Тыва"]
["Республика Хакасия"]
["Ростовская область"]
["Рязанская область"]
["Самарская область"]
["Санкт-Петербург"]
["Саратовская область"]
["Сахалинская область"]
["Свердловская область"]
["Смоленская область"]
["Ставропольский край"]
["Таймырский (Долгано-Ненецкий) автономный округ"]
["Тамбовская область"]
["Тверская область"]
["Томская область"]
["Тульская область"]
["Тюменская область"]
["Удмуртская Республика"]
["Ульяновская область"]
["Усть-Ордынский Бурятский автономный округ"]
["Хабаровский край"]
["Ханты-Мансийский автономный округ"]
["Челябинская область"]
["Чеченская Республика"]
["Читинская область"]
["Чувашская Республика"]
["Чукотский автономный округ"]
["Эвенкийский автономный округ"]
["Ямало-Ненецкий автономный округ"]
["Ярославская область"]
["НЕ ВЫБРАН"]
[]
[]
["1. Демографические показатели",12]
["2. Производство товаров и услуг",25]
["     2.1. Выпуск товаров и услуг",26]
["     2.2. Валовой региональный продукт",28]
["     2.3. Промышленное производство",32]
["            Добыча полезных ископаемых",34]
["            Обрабатывающие производства",44]
["            Производство и распределение электроэнергии, газа и воды",90]
["     2.4. Рыболовство и рыбоводство",112]
["     2.5. Сельское хозяйство",117]
["     2.6. Транспорт и связь",135]
["     2.7. Производство важнейших видов продукции в натуральном выражении ",142]
["     2.8. Строительство ",207]
["3. Рынок товаров и услуг",212]
["4. Внешнеэкономическая деятельность",253]
["5. Малое предпринимательство",300]
["6. Инвестиции",329]
["7. Финансы",437]
["8. Денежные доходы и расходы населения",499]
["9. Труд и занятость",524]
["10. Развитие социальной сферы",549]
["11. Охрана окружающей среды",591]
["12. Туризм",606]

{"sheet":"Cond_3p","index":18,"n_rows":27,"n_cols":16,"rows_kept":27,"cut":false,"hidden":true,"merged":[]}
[13,15,17]
[27,31,34,37,40,43,46,49]
[63,69,74,90,93,96,99,102,105,108,111,114,117,120,123]
[74,78,81,84,87]
[151,156,158,160]
[151,162,165]
[172,174,175,176]
[177,179,180,181]
[182,185,187,189]
[193,197,237,239,241,243,247,249,251,258,260,262,264,266]
[197,200,202,213,215,217,219,221,223,225,227,229,231,233,235]
[202,205,207,209,211]
[251,254,256]
[193,259,276,285]
[285,288,292]
[269,272,274]
[304,307,308]
[393,395,396]
[393,400,401,402,403]
[413,415,416]
[417,419,420,421]
[424,426,427,428,431]
[428,429,430]
[434,436,438,439]
[436,437]
[453,457,459,461,463,465,467,469,471,472,473,475,477,479,481,483]
[532,535,537,539]